Workbook

Sheet Index
C1: EDPR 2027-31 JEN - Rate of Return Model
C2: Index | G2: Overall Check: | H2: ='Check|List'!$H$2 -> OK
B5: Copyright Jemena Limited. All rights reserved. Jemena is not liable for any loss caused by reliance on this document.
B7: Model Index
C9: Description of model
C11: Sheet Name | D11: Sheet Description
C12: Input|Rate of return | D12: Inputs the forecast inflation and bond yield data
C13: Input|Indicators | D13: Controls timing and flags in the model
C14: Calc|Rate of return | D14: Calculates the rate of return and inflation estimates
C15: Output|Rate of return | D15: Outputs the rate of return and inflation estimates
C16: Lookup|Tables | D16: Includes the lookup tables used within the model
C17: Check|List | D17: Shows checks on the calculations within the model
B19: End

Sheet Input|Rate of return
C1: =Index!$C$1 -> EDPR 2027-31 JEN - Rate of Return Model | G1: Section Check | H1: =IF(COUNTA($A$8:$A$119)=COUNTIF($A$8:$A$119,"OK"),"OK","Check") -> OK | J1: Back to Index | L1: Key: | M1: Input | N1: Internal links | O1: External links | P1: Drop-down | Q1: Calculation | R1: Unique | S1: Empty
C2: =Index!$C$12 -> Input|Rate of return | G2: Overall Check: | H2: =+Overall_Check -> OK
L3: Prior | M3: Previous Regulatory Period | R3: Intermediate Period | S3: Current Regulatory Period | X3: Next Regulatory Period
D4: Source | E4: Unit | F4: Basis | G4: Timing | L4: =+'Input|Indicators'!L$16 -> 2015 | M4: =+'Input|Indicators'!M$16 -> 2016 | N4: =+'Input|Indicators'!N$16 -> 2017 | O4: =+'Input|Indicators'!O$16 -> 2018 | P4: =+'Input|Indicators'!P$16 -> 2019 | Q4: =+'Input|Indicators'!Q$16 -> 2020 | R4: =+'Input|Indicators'!R$16 -> 2021 | S4: =+'Input|Indicators'!S$16 -> 2022 | T4: =+'Input|Indicators'!T$16 -> 2023 | U4: =+'Input|Indicators'!U$16 -> 2024 | V4: =+'Input|Indicators'!V$16 -> 2025 | W4: =+'Input|Indicators'!W$16 -> 2026 | X4: =+'Input|Indicators'!X$16 -> 2027 | Y4: =+'Input|Indicators'!Y$16 -> 2028 | Z4: =+'Input|Indicators'!Z$16 -> 2029 | AA4: =+'Input|Indicators'!AA$16 -> 2030 | AB4: =+'Input|Indicators'!AB$16 -> 2031
B6: Copyright Jemena Limited. All rights reserved. Jemena is not liable for any loss caused by reliance on this document.
B8: Input | Inflation
C10: Opex Inflation (unlagged) | D10: Source | E10: Unit | F10: Basis | G10: =+G$4 -> Timing | L10: =+'Input|Indicators'!L$18 -> CY15 | M10: =+'Input|Indicators'!M$18 -> CY16 | N10: =+'Input|Indicators'!N$18 -> CY17 | O10: =+'Input|Indicators'!O$18 -> CY18 | P10: =+'Input|Indicators'!P$18 -> CY19 | Q10: =+'Input|Indicators'!Q$18 -> CY20 | R10: =+'Input|Indicators'!R$18 -> HY21 | S10: =+'Input|Indicators'!S$18 -> FY22 | T10: =+'Input|Indicators'!T$18 -> FY23 | U10: =+'Input|Indicators'!U$18 -> FY24 | V10: =+'Input|Indicators'!V$18 -> FY25 | W10: =+'Input|Indicators'!W$18 -> FY26 | X10: =+'Input|Indicators'!X$18 -> FY27 | Y10: =+'Input|Indicators'!Y$18 -> FY28 | Z10: =+'Input|Indicators'!Z$18 -> FY29 | AA10: =+'Input|Indicators'!AA$18 -> FY30 | AB10: =+'Input|Indicators'!AB$18 -> FY31
C12: Actual inflation | D12: ABS | E12: =percent -> Per cent | F12: n/a | G12: =+Not_Applicable -> n/a | L12: 0.01688555347 | M12: 0.0147601476 | N12: 0.01909090909 | O12: 0.0178412132 | P12: 0.01840490798 | Q12: 0.008605851979 | R12: 0.01365187713 | S12: 0.06144781145 | T12: 0.06026962728 | U12: 0.03814510097
C13: Forecast inflation | D13: RBA | E13: =percent -> Per cent | F13: n/a | G13: =+Not_Applicable -> n/a | V13: 0.025 | W13: 0.031
A15: =IF(SUM(L15:AB15)=0,"Ok","Check") -> Ok | C15: Check: Only one active input per period | L15: =+IF(OR(COUNTBLANK(L12:L13)=2,COUNTBLANK(L12:L13)=1),0,1) -> 0 | M15: 0 | N15: 0 | O15: 0 | P15: 0 | Q15: 0 | R15: 0 | S15: 0 | T15: 0 | U15: 0 | V15: 0 | W15: 0
C17: Capex Inflation (18 month lag) | D17: Source | E17: Unit | F17: Basis | G17: =+G$4 -> Timing | L17: =+'Input|Indicators'!L$18 -> CY15 | M17: =+'Input|Indicators'!M$18 -> CY16 | N17: =+'Input|Indicators'!N$18 -> CY17 | O17: =+'Input|Indicators'!O$18 -> CY18 | P17: =+'Input|Indicators'!P$18 -> CY19 | Q17: =+'Input|Indicators'!Q$18 -> CY20 | R17: =+'Input|Indicators'!R$18 -> HY21 | S17: =+'Input|Indicators'!S$18 -> FY22 | T17: =+'Input|Indicators'!T$18 -> FY23 | U17: =+'Input|Indicators'!U$18 -> FY24 | V17: =+'Input|Indicators'!V$18 -> FY25 | W17: =+'Input|Indicators'!W$18 -> FY26 | X17: =+'Input|Indicators'!X$18 -> FY27 | Y17: =+'Input|Indicators'!Y$18 -> FY28 | Z17: =+'Input|Indicators'!Z$18 -> FY29 | AA17: =+'Input|Indicators'!AA$18 -> FY30 | AB17: =+'Input|Indicators'!AB$18 -> FY31
C19: Actual inflation | D19: ABS | E19: =percent -> Per cent | F19: n/a | G19: =+Not_Applicable -> n/a | L19: 0.02307692308 | M19: 0.01510859301 | N19: 0.01023255814 | O19: 0.01933701657 | P19: 0.02077687444 | Q19: 0.01592920354 | R19: 0.01219512195 | S19: 0.008605851979 | T19: 0.03498293515 | U19: 0.07831821929 | V19: 0.04051987768
C20: Forecast inflation (year to Dec) | D20: RBA | E20: =percent -> Per cent | F20: n/a | G20: =+Not_Applicable -> n/a | W20: 0.026 | X20: 0.037
A22: =IF(SUM(L22:AB22)=0,"Ok","Check") -> Ok | C22: Check: Only one active input per period | L22: =+IF(OR(COUNTBLANK(L19:L20)=2,COUNTBLANK(L19:L20)=1),0,1) -> 0 | M22: 0 | N22: 0 | O22: 0 | P22: 0 | Q22: 0 | R22: 0 | S22: 0 | T22: 0 | U22: 0 | V22: 0 | W22: 0
C24: PTRM Forecast Inflation (unlagged) | D24: Source | E24: Unit | F24: Basis | G24: =+G$4 -> Timing | X24: =+'Input|Indicators'!X$18 -> FY27 | Y24: =+'Input|Indicators'!Y$18 -> FY28 | Z24: =+'Input|Indicators'!Z$18 -> FY29 | AA24: =+'Input|Indicators'!AA$18 -> FY30 | AB24: =+'Input|Indicators'!AB$18 -> FY31
C26: Forecast inflation | D26: RBA | E26: =percent -> Per cent | F26: n/a | G26: =+Not_Applicable -> n/a | X26: 0.025 | Y26: 0.025 | Z26: 0.025 | AA26: 0.025 | AB26: 0.025
C28: Source (actuals): ABS, all groups CPI inflation series A2325846C, weighted average for the eight capital cities.
C29: Source (forecasts): RBA, Statement on Monetary Policy, Economic Outlook, Nov 2024
B31: Input | Government bond yields
C33: Bond details | D33: Source | E33: Unit | F33: Basis | J33: Value
A35: =IF(ISERROR(J35),"Check","Ok") -> Ok | C35: Maturity | D35: AER | E35: Years | F35: n/a | J35: 10
C37: Bond details | D37: Source | E37: Unit | F37: Basis | J37: Bond 1 | L37: Bond 2
C39: Issue ID | D39: RBA | E39: Name | F39: n/a | J39: TB170 | L39: TB168
C40: Maturity | D40: RBA | E40: Date | F40: n/a | J40: 2034-06-21 | L40: 2034-12-21
C42: Yields by date
C44: 30-Aug-2024 | D44: RBA | E44: Per cent | F44: Nominal | J44: 0.03961 | L44: 0.03989
C45: 02-Sep-2024 | D45: RBA | E45: Per cent | F45: Nominal | J45: 0.04005 | L45: 0.04034
C46: 03-Sep-2024 | D46: RBA | E46: Per cent | F46: Nominal | J46: 0.03995 | L46: 0.04024
C47: 04-Sep-2024 | D47: RBA | E47: Per cent | F47: Nominal | J47: 0.03945 | L47: 0.03974
C48: 05-Sep-2024 | D48: RBA | E48: Per cent | F48: Nominal | J48: 0.0392 | L48: 0.03949
C49: 06-Sep-2024 | D49: RBA | E49: Per cent | F49: Nominal | J49: 0.03874 | L49: 0.03903
C50: 09-Sep-2024 | D50: RBA | E50: Per cent | F50: Nominal | J50: 0.0395 | L50: 0.03978
C51: 10-Sep-2024 | D51: RBA | E51: Per cent | F51: Nominal | J51: 0.03904 | L51: 0.0393
C52: 11-Sep-2024 | D52: RBA | E52: Per cent | F52: Nominal | J52: 0.03844 | L52: 0.0387
C53: 12-Sep-2024 | D53: RBA | E53: Per cent | F53: Nominal | J53: 0.0385 | L53: 0.03874
C54: 13-Sep-2024 | D54: RBA | E54: Per cent | F54: Nominal | J54: 0.03813 | L54: 0.03837
C55: 16-Sep-2024 | D55: RBA | E55: Per cent | F55: Nominal | J55: 0.03809 | L55: 0.03834
C56: 17-Sep-2024 | D56: RBA | E56: Per cent | F56: Nominal | J56: 0.03828 | L56: 0.03854
C57: 18-Sep-2024 | D57: RBA | E57: Per cent | F57: Nominal | J57: 0.03859 | L57: 0.03883
C58: 19-Sep-2024 | D58: RBA | E58: Per cent | F58: Nominal | J58: 0.03926 | L58: 0.0395
C59: 20-Sep-2024 | D59: RBA | E59: Per cent | F59: Nominal | J59: 0.03916 | L59: 0.0394
C60: 23-Sep-2024 | D60: RBA | E60: Per cent | F60: Nominal | J60: 0.03956 | L60: 0.03978
C61: 24-Sep-2024 | D61: RBA | E61: Per cent | F61: Nominal | J61: 0.03886 | L61: 0.0391
C62: 25-Sep-2024 | D62: RBA | E62: Per cent | F62: Nominal | J62: 0.03905 | L62: 0.0393
C63: 26-Sep-2024 | D63: RBA | E63: Per cent | F63: Nominal | J63: 0.03939 | L63: 0.03963
B65: Input | Corporate bond yields
C67: Yields by date (annualised) | J67: Yields
C69: Cost of debt observations
A70: =IF(OR(ISERROR(J70),ISNUMBER(J70)),"Ok","Check") -> Ok | C70: =+"Jan-Dec "&TRANSPOSE($M$4:$Q$4) -> Jan-Dec 2016 | D70: AER | E70: Per cent | F70: Nominal | J70: 0.05624604378 | K70: <- Enter "=NA()" if there is no data for the relevant year (e.g. because the averaging period has not yet occurred)
A71: Ok | C71: Jan-Dec 2017 | D71: AER | E71: Per cent | F71: Nominal | J71: 0.04604423391
A72: Ok | C72: Jan-Dec 2018 | D72: AER | E72: Per cent | F72: Nominal | J72: 0.04744558979
A73: Ok | C73: Jan-Dec 2019 | D73: AER | E73: Per cent | F73: Nominal | J73: 0.04693992697
A74: Ok | C74: Jan-Dec 2020 | D74: AER | E74: Per cent | F74: Nominal | J74: 0.03735974606
A75: Ok | C75: =+"Jan-Jun "&$R$4 -> Jan-Jun 2021 | D75: AER | E75: Per cent | F75: Nominal | J75: 0.02402710577
A76: Ok | C76: =+"Jun "&TRANSPOSE($R$4:$AA$4)&"-Jun "&TRANSPOSE($S$4:$AB$4) -> Jun 2021-Jun 2022 | D76: AER | E76: Per cent | F76: Nominal | J76: 0.02069970468
A77: Ok | C77: Jun 2022-Jun 2023 | D77: AER | E77: Per cent | F77: Nominal | J77: 0.03512700476
A78: Ok | C78: Jun 2023-Jun 2024 | D78: AER | E78: Per cent | F78: Nominal | J78: 0.06704275486
A79: Ok | C79: Jun 2024-Jun 2025 | D79: AER | E79: Per cent | F79: Nominal | J79: 0.06602953143
A80: =IF(OR(ISERROR(J80),ISNUMBER(J80)),"Ok","Check") -> Ok | C80: Jun 2025-Jun 2026 | D80: JEN | E80: Per cent | F80: Nominal | J80: 0.05962969633
A81: Ok | C81: Jun 2026-Jun 2027 | D81: Placeholder | E81: Per cent | F81: Nominal | J81: =+J80 -> 0.05962969633
A82: Ok | C82: Jun 2027-Jun 2028 | D82: Placeholder | E82: Per cent | F82: Nominal | J82: =+J81 -> 0.05962969633
A83: Ok | C83: Jun 2028-Jun 2029 | D83: Placeholder | E83: Per cent | F83: Nominal | J83: =+J82 -> 0.05962969633
A84: Ok | C84: Jun 2029-Jun 2030 | D84: Placeholder | E84: Per cent | F84: Nominal | J84: =+J83 -> 0.05962969633
A85: Ok | C85: Jun 2030-Jun 2031 | D85: Placeholder | E85: Per cent | F85: Nominal | J85: =+J84 -> 0.05962969633
C87: Weights used in cost of debt transition
C88: New observations | D88: AER | E88: Per cent | F88: Nominal | J88: 0.1 | K88: <- This is the weight applied to each new observation
C89: Observation for Intervening period (applied in the period) | D89: AER | E89: Per cent | F89: n/a | J89: 0.1
C90: Observation for Intervening period (applied after the period) | D90: AER | E90: Per cent | F90: n/a | J90: 0.05
C91: Initial observation | D91: AER | E91: Per cent | F91: Nominal | J91: 1
B93: Input | Cost of equity
C95: Parameters | D95: Source | E95: Unit | F95: Basis | J95: Parameter
A97: =IF(ISERROR(J97),"Check","Ok") -> Ok | C97: Market risk premium | D97: AER | E97: Per cent | J97: 0.062
A98: =IF(ISERROR(J98),"Check","Ok") -> Ok | C98: Equity beta | D98: AER | E98: Per cent | J98: 0.6
B101: Input | Other parameters
C103: Rate of return | D103: Source | E103: Unit | F103: Basis | J103: Parameter
A105: =IF(ISERROR(J105),"Check","Ok") -> Ok | C105: Leverage ratio | D105: AER | E105: Per cent | J105: 0.6
A106: =IF(ISERROR(J106),"Check","Ok") -> Ok | C106: Gamma | D106: AER | E106: Per cent | J106: 0.57
A107: =IF(ISERROR(J107),"Check","Ok") -> Ok | C107: Tax rate | D107: ATO | E107: Per cent | J107: 0.3
A108: =IF(ISERROR(J108),"Check","Ok") -> Ok | C108: Risk free rate | D108: JEN | E108: Per cent | J108: =Rfr -> 0.0395443886
C110: Debt and equity raising costs
A112: =IF(ISERROR(J112),"Check","Ok") -> Ok | C112: Debt raising costs | D112: CEG | E112: =percent -> Per cent | J112: 0.000884
A113: =IF(ISERROR(J113),"Check","Ok") -> Ok | C113: Dividend / imputation payout ratio | D113: Ergon DD PTRM | E113: =percent -> Per cent | J113: 0.878670689
A114: =IF(ISERROR(J114),"Check","Ok") -> Ok | C114: Benchmark SEO raising cost | D114: AER | E114: =percent -> Per cent | J114: 0.03
A115: =IF(ISERROR(J115),"Check","Ok") -> Ok | C115: Benchmark DRP cost | D115: AER | E115: =percent -> Per cent | J115: 0.01
A116: =IF(ISERROR(J116),"Check","Ok") -> Ok | C116: Benchmark DRP takeup | D116: AER | E116: =percent -> Per cent | J116: 0.3
B119: End

Sheet Input|Indicators
D1: =Model_Name -> EDPR 2027-31 JEN - Rate of Return Model | G1: Section Check: | H1: =IF(SUM(A7:A20)=0,"Ok","Check") -> Ok | L1: Legend: | M1: Input | N1: Internal links | O1: External links | P1: Drop-down | Q1: Calculation | R1: Unique | S1: Empty
D2: =RIGHT(CELL("filename",D1),LEN(CELL("filename",D1))-FIND("]",CELL("filename",D1))) -> Input|Indicators | G2: Overall Check: | H2: =_xlfn.SINGLE(Overall_Check) -> OK
E3: Source | F3: Unit | G3: Basis | H3: Timing | K3: Year | L3: =+'Input|Indicators'!L$16 -> 2015 | M3: =+'Input|Indicators'!M$16 -> 2016 | N3: =+'Input|Indicators'!N$16 -> 2017 | O3: =+'Input|Indicators'!O$16 -> 2018 | P3: =+'Input|Indicators'!P$16 -> 2019 | Q3: =+'Input|Indicators'!Q$16 -> 2020 | R3: =+'Input|Indicators'!R$16 -> 2021 | S3: =+'Input|Indicators'!S$16 -> 2022 | T3: =+'Input|Indicators'!T$16 -> 2023 | U3: =+'Input|Indicators'!U$16 -> 2024 | V3: =+'Input|Indicators'!V$16 -> 2025 | W3: =+'Input|Indicators'!W$16 -> 2026 | X3: =+'Input|Indicators'!X$16 -> 2027 | Y3: =+'Input|Indicators'!Y$16 -> 2028 | Z3: =+'Input|Indicators'!Z$16 -> 2029 | AA3: =+'Input|Indicators'!AA$16 -> 2030 | AB3: =+'Input|Indicators'!AB$16 -> 2031 | AC3: =+'Input|Indicators'!AC$16 -> 2032 | AD3: =+'Input|Indicators'!AD$16 -> 2033 | AE3: =+'Input|Indicators'!AE$16 -> 2034 | AF3: =+'Input|Indicators'!AF$16 -> 2035
B5: Copyright Jemena Limited. All rights reserved. Jemena is not liable for any loss caused by reliance on this document.
B7: Timing
D9: Assumption | E9: =+E$3 -> Source | F9: =+F$3 -> Unit | G9: =+G$3 -> Basis | H9: =+H$3 -> Timing | L9: Constant
D11: Base year (year ending) | E11: Input | F11: =+Year -> year | G11: =+Not_Applicable -> n/a | H11: =+Not_Applicable -> n/a | L11: 2015
D13: Counters | E13: =+E$3 -> Source | F13: =+F$3 -> Unit | G13: =+G$3 -> Basis | H13: =+H$3 -> Timing | L13: Series
D15: Period counter | E15: Input | F15: =+number -> number | G15: =+Not_Applicable -> n/a | H15: n/a | L15: 1 | M15: =+L15+1 -> 2 | N15: =+M15+1 -> 3 | O15: 4 | P15: 5 | Q15: 6 | R15: 7 | S15: 8 | T15: 9 | U15: 10 | V15: 11 | W15: 12 | X15: 13 | Y15: 14 | Z15: 15 | AA15: 16 | AB15: 17 | AC15: 18 | AD15: 19 | AE15: 20 | AF15: 21
D16: Year | E16: Calculation | F16: =+Year -> year | G16: n/a | H16: n/a | L16: =+$L$11 -> 2015 | M16: =+L16+1 -> 2016 | N16: 2017 | O16: 2018 | P16: 2019 | Q16: 2020 | R16: 2021 | S16: 2022 | T16: 2023 | U16: 2024 | V16: 2025 | W16: 2026 | X16: 2027 | Y16: 2028 | Z16: 2029 | AA16: 2030 | AB16: 2031 | AC16: 2032 | AD16: 2033 | AE16: 2034 | AF16: 2035
D17: Prefix | E17: Input | F17: text | G17: n/a | H17: n/a | L17: CY | M17: =+L17 -> CY | N17: =+M17 -> CY | O17: =+N17 -> CY | P17: =+O17 -> CY | Q17: =+P17 -> CY | R17: HY | S17: FY | T17: =+S17 -> FY | U17: =+T17 -> FY | V17: FY | W17: FY | X17: FY | Y17: FY | Z17: FY | AA17: FY | AB17: FY | AC17: FY | AD17: FY | AE17: FY | AF17: FY
D18: Presentation year | E18: Calculation | F18: =+Year -> year | G18: n/a | H18: n/a | L18: =+L$17&RIGHT(L$16,2) -> CY15 | M18: =+M$17&RIGHT(M$16,2) -> CY16 | N18: CY17 | O18: CY18 | P18: CY19 | Q18: CY20 | R18: HY21 | S18: FY22 | T18: FY23 | U18: FY24 | V18: FY25 | W18: FY26 | X18: FY27 | Y18: FY28 | Z18: FY29 | AA18: FY30 | AB18: FY31 | AC18: FY32 | AD18: FY33 | AE18: FY34 | AF18: FY35
B20: End

Sheet Calc|Rate of return
C1: =Index!$C$1 -> EDPR 2027-31 JEN - Rate of Return Model | G1: Section Check: | H1: =IF(COUNTA($A$8:$A$101)=COUNTIF($A$8:$A$101,"OK"),"OK","Check") -> OK | J1: Back to Index | L1: Key: | M1: Input | N1: Internal links | O1: External links | P1: Drop-down | Q1: Calculation | R1: Unique | S1: Empty
C2: =Index!$C$14 -> Calc|Rate of return | G2: Overall Check: | H2: ='Check|List'!$H$2 -> OK
L3: Prior | M3: Previous Regulatory Period | R3: Intermediate Period | S3: Current Regulatory Period | X3: Next Regulatory Period
D4: Source | E4: Unit | F4: Basis | G4: Timing | L4: =+'Input|Indicators'!L$3 -> 2015 | M4: =+'Input|Indicators'!M$3 -> 2016 | N4: =+'Input|Indicators'!N$3 -> 2017 | O4: =+'Input|Indicators'!O$3 -> 2018 | P4: =+'Input|Indicators'!P$3 -> 2019 | Q4: =+'Input|Indicators'!Q$3 -> 2020 | R4: =+'Input|Indicators'!R$3 -> 2021 | S4: =+'Input|Indicators'!S$3 -> 2022 | T4: =+'Input|Indicators'!T$3 -> 2023 | U4: =+'Input|Indicators'!U$3 -> 2024 | V4: =+'Input|Indicators'!V$3 -> 2025 | W4: =+'Input|Indicators'!W$3 -> 2026 | X4: =+'Input|Indicators'!X$3 -> 2027 | Y4: =+'Input|Indicators'!Y$3 -> 2028 | Z4: =+'Input|Indicators'!Z$3 -> 2029 | AA4: =+'Input|Indicators'!AA$3 -> 2030 | AB4: =+'Input|Indicators'!AB$3 -> 2031
B6: Copyright Jemena Limited. All rights reserved. Jemena is not liable for any loss caused by reliance on this document.
B8: Calc | Forecast inflation
C10: Inflation | D10: =+D$4 -> Source | E10: =+E$4 -> Unit | F10: =+F$4 -> Basis | G10: =+G$4 -> Timing | L10: =+'Input|Indicators'!L$18 -> CY15 | M10: =+'Input|Indicators'!M$18 -> CY16 | N10: =+'Input|Indicators'!N$18 -> CY17 | O10: =+'Input|Indicators'!O$18 -> CY18 | P10: =+'Input|Indicators'!P$18 -> CY19 | Q10: =+'Input|Indicators'!Q$18 -> CY20 | R10: =+'Input|Indicators'!R$18 -> HY21 | S10: =+'Input|Indicators'!S$18 -> FY22 | T10: =+'Input|Indicators'!T$18 -> FY23 | U10: =+'Input|Indicators'!U$18 -> FY24 | V10: =+'Input|Indicators'!V$18 -> FY25 | W10: =+'Input|Indicators'!W$18 -> FY26 | X10: =+'Input|Indicators'!X$18 -> FY27 | Y10: =+'Input|Indicators'!Y$18 -> FY28 | Z10: =+'Input|Indicators'!Z$18 -> FY29 | AA10: =+'Input|Indicators'!AA$18 -> FY30 | AB10: =+'Input|Indicators'!AB$18 -> FY31
C12: Inflation (Capex and Pricing) | D12: Inputs|Rate of return | E12: =+percent -> Per cent | F12: =+Not_Applicable -> n/a | G12: n/a | L12: =+'Input|Rate of return'!L$19 -> 0.02307692308 | M12: =+'Input|Rate of return'!M$19 -> 0.01510859301 | N12: =+'Input|Rate of return'!N$19 -> 0.01023255814 | O12: =+'Input|Rate of return'!O$19 -> 0.01933701657 | P12: =+'Input|Rate of return'!P$19 -> 0.02077687444 | Q12: =+'Input|Rate of return'!Q$19 -> 0.01592920354 | R12: =+'Input|Rate of return'!R$19 -> 0.01219512195 | S12: =+'Input|Rate of return'!S$19 -> 0.008605851979 | T12: =+'Input|Rate of return'!T$19 -> 0.03498293515 | U12: =+'Input|Rate of return'!U$19 -> 0.07831821929 | V12: =+'Input|Rate of return'!V$19 -> 0.04051987768 | W12: =+'Input|Rate of return'!W$20 -> 0.026 | X12: =+X14 -> 0.025 | Y12: =+Y14 -> 0.025 | Z12: =+Z14 -> 0.025 | AA12: =+AA14 -> 0.025 | AB12: =+AB14 -> 0.025
C13: Inflation (Opex) | D13: Inputs|Rate of return | E13: =+percent -> Per cent | F13: n/a | G13: n/a | L13: =+'Input|Rate of return'!L$12 -> 0.01688555347 | M13: =+'Input|Rate of return'!M$12 -> 0.0147601476 | N13: =+'Input|Rate of return'!N$12 -> 0.01909090909 | O13: =+'Input|Rate of return'!O$12 -> 0.0178412132 | P13: =+'Input|Rate of return'!P$12 -> 0.01840490798 | Q13: =+'Input|Rate of return'!Q$12 -> 0.008605851979 | R13: =+'Input|Rate of return'!R$12 -> 0.01365187713 | S13: =+'Input|Rate of return'!S$12 -> 0.06144781145 | T13: =+'Input|Rate of return'!T$12 -> 0.06026962728 | U13: =+'Input|Rate of return'!U$12 -> 0.03814510097 | V13: =+'Input|Rate of return'!V$13 -> 0.025 | W13: =+'Input|Rate of return'!W$13 -> 0.031 | X13: =+X14 -> 0.025 | Y13: =+Y14 -> 0.025 | Z13: =+Z14 -> 0.025 | AA13: =+AA14 -> 0.025 | AB13: =+AB14 -> 0.025
C14: Expected inflation - Glide Path | D14: Inputs|Rate of return | E14: =+percent -> Per cent | F14: n/a | G14: n/a | X14: =PRODUCT(1+'Input|Rate of return'!$X$26:$AB$26)^(1/Reg_Period_Length)-1 -> 0.025 | Y14: =PRODUCT(1+'Input|Rate of return'!$X$26:$AB$26)^(1/Reg_Period_Length)-1 -> 0.025 | Z14: =PRODUCT(1+'Input|Rate of return'!$X$26:$AB$26)^(1/Reg_Period_Length)-1 -> 0.025 | AA14: =PRODUCT(1+'Input|Rate of return'!$X$26:$AB$26)^(1/Reg_Period_Length)-1 -> 0.025 | AB14: =PRODUCT(1+'Input|Rate of return'!$X$26:$AB$26)^(1/Reg_Period_Length)-1 -> 0.025
B16: Calc | Inflation Indices
C18: Inflation indices | D18: =+D$4 -> Source | E18: =+E$4 -> Unit | F18: From | G18: =+$G$4 -> Timing | H18: To | I18: =+$G$4 -> Timing
C20: =+"Opex - Dec-Dec Lagged Index: Real "&$L$4&" to Nominal" -> Opex - Dec-Dec Lagged Index: Real 2015 to Nominal | D20: Calculated | E20: factor | F20: =+Not_Applicable -> n/a | G20: =+Not_Applicable -> n/a | L20: 1 | M20: =+L20*(1+M$13) -> 1.014760148 | N20: 1.034132841 | O20: 1.052583026 | P20: 1.07195572 | Q20: 1.081180812 | R20: 1.095940959 | S20: 1.163284133 | T20: 1.233394834 | U20: 1.280442804 | V20: 1.312453875 | W20: 1.353139945 | X20: 1.386968443 | Y20: 1.421642654 | Z20: 1.457183721 | AA20: 1.493613314 | AB20: 1.530953647
C22: =IF(ISNUMBER(F22),"Real ","")&F22&" ("&G22&") to " &IF(ISNUMBER(H22),"Real ","")&H22&" ("&I22&")" -> Real 2024 (Mid-year) to Nominal (Mid-year) | D22: Calculated | E22: =+factor -> factor | F22: 2024 | G22: Mid-year | H22: Nominal | I22: Mid-year | L22: =IF($H22=Nominal,L$20,INDEX($L$20:$AB$20,,MATCH($H22,$L$4:$AB$4,0))) /IF($F22=Nominal,L$20,INDEX($L$20:$AB$20,,MATCH($F22,$L$4:$AB$4,0))) *IF($I22=Mid_year,1/(1+IF($H22=Nominal,L$13,INDEX($L$13:$AB$13,,MATCH($H22,$L$4:$AB$4,0))))^INDEX(Timing_Adj,MATCH($I22,Cash_Timing,0)),1) *IF($G22=Mid_year,(1+IF($F22=Nominal,L$13,INDEX($L$13:$AB$13,,MATCH($F22,$L$4:$AB$4,0))))^INDEX(Timing_Adj,MATCH($G22,Cash_Timing,0)),1) -> 0.789101387 | M22: 0.8015867817 | N22: 0.8151522135 | O22: 0.8302047079 | P22: 0.8452505257 | Q22: 0.8566559451 | R22: 0.8661868565 | S22: 0.8984736129 | T22: 0.9531534194 | U22: 1 | V22: =IF($H22=Nominal,V$20,INDEX($L$20:$AB$20,,MATCH($H22,$L$4:$AB$4,0))) /IF($F22=Nominal,V$20,INDEX($L$20:$AB$20,,MATCH($F22,$L$4:$AB$4,0))) *IF($I22=Mid_year,1/(1+IF($H22=Nominal,V$13,INDEX($L$13:$AB$13,,MATCH($H22,$L$4:$AB$4,0))))^INDEX(Timing_Adj,MATCH($I22,Cash_Timing,0)),1) *IF($G22=Mid_year,(1+IF($F22=Nominal,V$13,INDEX($L$13:$AB$13,,MATCH($F22,$L$4:$AB$4,0))))^INDEX(Timing_Adj,MATCH($G22,Cash_Timing,0)),1) -> 1.031551612 | W22: 1.060430542 | X22: 1.090117955 | Y22: 1.117370904 | Z22: 1.145305176 | AA22: 1.173937806 | AB22: 1.203286251
C23: Nominal (Mid-year) to Real 2026 (End-year) | D23: Calculated | E23: =+factor -> factor | F23: Nominal | G23: Mid-year | H23: 2026 | I23: End-year | L23: 1.36451638 | M23: 1.343262879 | N23: 1.320908844 | O23: 1.296959362 | P23: 1.273872935 | Q23: 1.256912736 | R23: 1.243082552 | S23: 1.198412232 | T23: 1.129662598 | U23: 1.076741768 | V23: 1.043807944 | W23: 1.015381702 | X23: 0.9877295966 | Y23: 0.9636386309 | Z23: 0.9401352496 | AA23: 0.9172051216 | AB23: 0.894834265
C24: Real 2021 (End-year) to Real 2026 (End-year) | D24: Calculated | E24: factor | F24: 2021 | G24: End-year | H24: 2026 | I24: End-year | L24: 1.234683249 | M24: 1.234683249 | N24: 1.234683249 | O24: 1.234683249 | P24: 1.234683249 | Q24: 1.234683249 | R24: 1.234683249 | S24: 1.234683249 | T24: 1.234683249 | U24: 1.234683249 | V24: 1.234683249 | W24: 1.234683249 | X24: 1.234683249 | Y24: 1.234683249 | Z24: 1.234683249 | AA24: 1.234683249 | AB24: 1.234683249
C25: Real 2015 (End-year) to Real 2026 (End-year) | D25: Calculated | E25: factor | F25: 2015 | G25: End-year | H25: 2026 | I25: End-year | L25: 1.353139945 | M25: 1.353139945 | N25: 1.353139945 | O25: 1.353139945 | P25: 1.353139945 | Q25: 1.353139945 | R25: 1.353139945 | S25: 1.353139945 | T25: 1.353139945 | U25: 1.353139945 | V25: 1.353139945 | W25: 1.353139945 | X25: 1.353139945 | Y25: 1.353139945 | Z25: 1.353139945 | AA25: 1.353139945 | AB25: 1.353139945
C26: Real 2026 (End-year) to Nominal (End-year) | D26: Calculated | E26: factor | F26: 2026 | G26: End-year | H26: Nominal | I26: End-year | L26: 0.7390218609 | M26: 0.7499299327 | N26: 0.7642467769 | O26: 0.7778818665 | P26: 0.7921987107 | Q26: 0.7990162555 | R26: 0.8099243273 | S26: 0.8596924046 | T26: 0.9115057455 | U26: 0.9462752241 | V26: 0.9699321048 | W26: 1 | X26: 1.025 | Y26: 1.050625 | Z26: 1.076890625 | AA26: 1.103812891 | AB26: 1.131408213
C27: Real 2024 (End-year) to Real 2026 (End-year) | D27: Calculated | E27: factor | F27: 2024 | G27: End-year | H27: 2026 | I27: End-year | L27: =IF($H27=Nominal,L$20,INDEX($L$20:$AB$20,,MATCH($H27,$L$4:$AB$4,0))) /IF($F27=Nominal,L$20,INDEX($L$20:$AB$20,,MATCH($F27,$L$4:$AB$4,0))) *IF($I27=Mid_year,1/(1+IF($H27=Nominal,L$13,INDEX($L$13:$AB$13,,MATCH($H27,$L$4:$AB$4,0))))^INDEX(Timing_Adj,MATCH($I27,Cash_Timing,0)),1) *IF($G27=Mid_year,(1+IF($F27=Nominal,L$13,INDEX($L$13:$AB$13,,MATCH($F27,$L$4:$AB$4,0))))^INDEX(Timing_Adj,MATCH($G27,Cash_Timing,0)),1) -> 1.056775 | M27: 1.056775 | N27: 1.056775 | O27: 1.056775 | P27: 1.056775 | Q27: 1.056775 | R27: 1.056775 | S27: 1.056775 | T27: 1.056775 | U27: 1.056775 | V27: 1.056775 | W27: 1.056775 | X27: 1.056775 | Y27: 1.056775 | Z27: 1.056775 | AA27: 1.056775 | AB27: 1.056775
C28: [Spare] | D28: Calculated | E28: factor | F28: 2026 | G28: End-year | H28: 2026 | I28: End-year | L28: 1 | M28: 1 | N28: 1 | O28: 1 | P28: 1 | Q28: 1 | R28: 1 | S28: 1 | T28: 1 | U28: 1 | V28: 1 | W28: 1 | X28: 1 | Y28: 1 | Z28: 1 | AA28: 1 | AB28: 1
C30: =+"Capex & RFM - Dec-Dec Lagged Index: Real "&$L$4&" to Nominal" -> Capex & RFM - Dec-Dec Lagged Index: Real 2015 to Nominal | D30: Calculated | E30: factor | F30: =+Not_Applicable -> n/a | G30: =+Not_Applicable -> n/a | L30: 1 | M30: =+L30*(1+M$12) -> 1.015108593 | N30: =+M30*(1+N$12) -> 1.025495751 | O30: =+N30*(1+O$12) -> 1.045325779 | P30: 1.067044381 | Q30: 1.084041549 | R30: 1.097261568 | S30: 1.106704438 | T30: 1.145420208 | U30: 1.235127479 | V30: 1.285174693 | W30: 1.318589235 | X30: 1.351553966 | Y30: 1.385342815 | Z30: 1.419976386 | AA30: 1.455475795 | AB30: 1.49186269
C32: =IF(ISNUMBER(F32),"Real ","")&F32&" ("&G32&") to " &IF(ISNUMBER(H32),"Real ","")&H32&" ("&I32&")" -> Real 2024 (End-year) to Real 2026 (End-year) | D32: Calculated | E32: =+factor -> factor | F32: 2024 | G32: End-year | H32: 2026 | I32: End-year | L32: =IF($H32=Nominal,L$30,INDEX($L$30:$AB$30,,MATCH($H32,$L$4:$AB$4,0))) /IF($F32=Nominal,L$30,INDEX($L$30:$AB$30,,MATCH($F32,$L$4:$AB$4,0))) *IF($I32=Mid_year,1/(1+IF($H32=Nominal,L$12,INDEX($L$12:$AB$12,,MATCH($H32,$L$4:$AB$4,0))))^INDEX(Timing_Adj,MATCH($I32,Cash_Timing,0)),1) *IF($G32=Mid_year,(1+IF($F32=Nominal,L$12,INDEX($L$12:$AB$12,,MATCH($F32,$L$4:$AB$4,0))))^INDEX(Timing_Adj,MATCH($G32,Cash_Timing,0)),1) -> 1.067573394 | M32: 1.067573394 | N32: 1.067573394 | O32: 1.067573394 | P32: 1.067573394 | Q32: 1.067573394 | R32: 1.067573394 | S32: 1.067573394 | T32: 1.067573394 | U32: 1.067573394 | V32: =IF($H32=Nominal,V$30,INDEX($L$30:$AB$30,,MATCH($H32,$L$4:$AB$4,0))) /IF($F32=Nominal,V$30,INDEX($L$30:$AB$30,,MATCH($F32,$L$4:$AB$4,0))) *IF($I32=Mid_year,1/(1+IF($H32=Nominal,V$12,INDEX($L$12:$AB$12,,MATCH($H32,$L$4:$AB$4,0))))^INDEX(Timing_Adj,MATCH($I32,Cash_Timing,0)),1) *IF($G32=Mid_year,(1+IF($F32=Nominal,V$12,INDEX($L$12:$AB$12,,MATCH($F32,$L$4:$AB$4,0))))^INDEX(Timing_Adj,MATCH($G32,Cash_Timing,0)),1) -> 1.067573394 | W32: 1.067573394 | X32: 1.067573394 | Y32: 1.067573394 | Z32: 1.067573394 | AA32: 1.067573394 | AB32: 1.067573394
C33: Real 2017 (End-year) to Real 2026 (End-year) | D33: Calculated | E33: factor | F33: 2017 | G33: End-year | H33: 2026 | I33: End-year | L33: 1.28580663 | M33: 1.28580663 | N33: 1.28580663 | O33: 1.28580663 | P33: 1.28580663 | Q33: 1.28580663 | R33: 1.28580663 | S33: 1.28580663 | T33: 1.28580663 | U33: 1.28580663 | V33: 1.28580663 | W33: 1.28580663 | X33: 1.28580663 | Y33: 1.28580663 | Z33: 1.28580663 | AA33: 1.28580663 | AB33: 1.28580663
C34: Real 2026 (End-year) to Nominal (End-year) | D34: Calculated | E34: factor | F34: 2026 | G34: End-year | H34: Nominal | I34: End-year | L34: 0.7583862915 | M34: 0.7698444413 | N34: 0.7777219193 | O34: 0.7927607409 | P34: 0.8092318313 | Q34: 0.8221222499 | R34: 0.832148131 | S34: 0.8393094746 | T34: 0.8686709835 | U34: 0.9367037481 | V34: 0.9746588694 | W34: 1 | X34: 1.025 | Y34: 1.050625 | Z34: 1.076890625 | AA34: 1.103812891 | AB34: 1.131408213
C35: Real 2026 (End-year) to Nominal (Mid-year) | D35: Calculated | E35: factor | F35: 2026 | G35: End-year | H35: Nominal | I35: Mid-year | L35: 0.7497842784 | M35: 0.7640938888 | N35: 0.7737731557 | O35: 0.7852053266 | P35: 0.8009539476 | Q35: 0.8156515762 | R35: 0.8271199995 | S35: 0.8357211321 | T35: 0.853864033 | U35: 0.9020462106 | V35: 0.9554928655 | W35: 0.9872481296 | X35: 1.012422837 | Y35: 1.037733407 | Z35: 1.063676743 | AA35: 1.090268661 | AB35: 1.117525378
C36: Nominal (Mid-year) to Real 2026 (End-year) | D36: Calculated | E36: factor | F36: Nominal | G36: Mid-year | H36: 2026 | I36: End-year | L36: 1.333716949 | M36: 1.308739691 | N36: 1.292368432 | O36: 1.273552237 | P36: 1.248511232 | Q36: 1.226013692 | R36: 1.209014412 | S36: 1.196571394 | T36: 1.171146648 | U36: 1.108590656 | V36: 1.04658029 | W36: 1.012916581 | X36: 0.9877295966 | Y36: 0.9636386309 | Z36: 0.9401352496 | AA36: 0.9172051216 | AB36: 0.894834265
C37: Real 2021 (End-year) to Real 2026 (End-year) | D37: Calculated | E37: factor | F37: 2021 | G37: End-year | H37: 2026 | I37: End-year | L37: 1.201709122 | M37: 1.201709122 | N37: 1.201709122 | O37: 1.201709122 | P37: 1.201709122 | Q37: 1.201709122 | R37: 1.201709122 | S37: 1.201709122 | T37: 1.201709122 | U37: 1.201709122 | V37: 1.201709122 | W37: 1.201709122 | X37: 1.201709122 | Y37: 1.201709122 | Z37: 1.201709122 | AA37: 1.201709122 | AB37: 1.201709122
C38: Real 2015 (End-year) to Real 2026 (End-year) | D38: Calculated | E38: factor | F38: 2015 | G38: End-year | H38: 2026 | I38: End-year | L38: 1.318589235 | M38: 1.318589235 | N38: 1.318589235 | O38: 1.318589235 | P38: 1.318589235 | Q38: 1.318589235 | R38: 1.318589235 | S38: 1.318589235 | T38: 1.318589235 | U38: 1.318589235 | V38: 1.318589235 | W38: 1.318589235 | X38: 1.318589235 | Y38: 1.318589235 | Z38: 1.318589235 | AA38: 1.318589235 | AB38: 1.318589235
B40: Calc | Risk-free rate
K42: ='Input|Rate of return'!J39 -> TB170 | O42: ='Input|Rate of return'!L39 -> TB168 | S42: Bond weights | U42: Interpolation
C43: Yields on government bonds | D43: Source | E43: Unit | F43: Basis | K43: Date | L43: Yield | O43: Date | P43: Yield | R43: Date | S43: =K42 -> TB170 | T43: =O42 -> TB168 | U43: Bond yield | V43: Annualised
A45: =IF(ISERROR(M45),"Check","Ok") -> Ok | C45: ='Input|Rate of return'!C44 -> 30-Aug-2024 | D45: Inputs|Rate of return | E45: =+percent -> Per cent | F45: =+Nominal -> Nominal | K45: ='Input|Rate of return'!J40 -> 2034-06-21 | L45: ='Input|Rate of return'!J44 -> 0.03961 | O45: ='Input|Rate of return'!L40 -> 2034-12-21 | P45: ='Input|Rate of return'!L44 -> 0.03989 | R45: =(DATE(YEAR(C45)+Rfr_Maturity,MONTH(C45),DAY(C45))) -> 2034-08-30 | S45: =IF(R45>=O45,0,1-(R45-K45)/(O45-K45)) -> 0.6174863388 | T45: =1-S45 -> 0.3825136612 | U45: =S45*L45+T45*P45 -> 0.03971710383 | V45: =(1+U45/2)^2-1 -> 0.04011146591
A46: Ok | C46: ='Input|Rate of return'!C45 -> 02-Sep-2024 | D46: Inputs|Rate of return | E46: Per cent | F46: Nominal | K46: =K45 -> 2034-06-21 | L46: ='Input|Rate of return'!J45 -> 0.04005 | O46: =O45 -> 2034-12-21 | P46: ='Input|Rate of return'!L45 -> 0.04034 | R46: =(DATE(YEAR(C46)+Rfr_Maturity,MONTH(C46),DAY(C46))) -> 2034-09-02 | S46: 0.6010928962 | T46: =1-S46 -> 0.3989071038 | U46: 0.04016568306 | V46: =(1+U46/2)^2-1 -> 0.04056900358
A47: Ok | C47: ='Input|Rate of return'!C46 -> 03-Sep-2024 | D47: Inputs|Rate of return | E47: Per cent | F47: Nominal | K47: =K46 -> 2034-06-21 | L47: ='Input|Rate of return'!J46 -> 0.03995 | O47: =O46 -> 2034-12-21 | P47: ='Input|Rate of return'!L46 -> 0.04024 | R47: 2034-09-03 | S47: 0.5956284153 | T47: 0.4043715847 | U47: 0.04006726776 | V47: =(1+U47/2)^2-1 -> 0.04046861425
A48: Ok | C48: ='Input|Rate of return'!C47 -> 04-Sep-2024 | D48: Inputs|Rate of return | E48: Per cent | F48: Nominal | K48: 2034-06-21 | L48: ='Input|Rate of return'!J47 -> 0.03945 | O48: 2034-12-21 | P48: ='Input|Rate of return'!L47 -> 0.03974 | R48: 2034-09-04 | S48: 0.5901639344 | T48: 0.4098360656 | U48: 0.03956885246 | V48: 0.03996027598
A49: Ok | C49: ='Input|Rate of return'!C48 -> 05-Sep-2024 | D49: Inputs|Rate of return | E49: Per cent | F49: Nominal | K49: 2034-06-21 | L49: ='Input|Rate of return'!J48 -> 0.0392 | O49: 2034-12-21 | P49: ='Input|Rate of return'!L48 -> 0.03949 | R49: 2034-09-05 | S49: 0.5846994536 | T49: 0.4153005464 | U49: 0.03932043716 | V49: 0.03970696135
A50: Ok | C50: ='Input|Rate of return'!C49 -> 06-Sep-2024 | D50: Inputs|Rate of return | E50: Per cent | F50: Nominal | K50: 2034-06-21 | L50: ='Input|Rate of return'!J49 -> 0.03874 | O50: 2034-12-21 | P50: ='Input|Rate of return'!L49 -> 0.03903 | R50: 2034-09-06 | S50: 0.5792349727 | T50: 0.4207650273 | U50: 0.03886202186 | V50: 0.03923958604
A51: Ok | C51: ='Input|Rate of return'!C50 -> 09-Sep-2024 | D51: Inputs|Rate of return | E51: Per cent | F51: Nominal | K51: 2034-06-21 | L51: ='Input|Rate of return'!J50 -> 0.0395 | O51: 2034-12-21 | P51: ='Input|Rate of return'!L50 -> 0.03978 | R51: 2034-09-09 | S51: 0.5628415301 | T51: 0.4371584699 | U51: 0.03962240437 | V51: 0.0400148881
A52: Ok | C52: ='Input|Rate of return'!C51 -> 10-Sep-2024 | D52: Inputs|Rate of return | E52: Per cent | F52: Nominal | K52: 2034-06-21 | L52: ='Input|Rate of return'!J51 -> 0.03904 | O52: 2034-12-21 | P52: ='Input|Rate of return'!L51 -> 0.0393 | R52: 2034-09-10 | S52: 0.5573770492 | T52: 0.4426229508 | U52: 0.03915508197 | V52: 0.03953836208
A53: Ok | C53: ='Input|Rate of return'!C52 -> 11-Sep-2024 | D53: Inputs|Rate of return | E53: Per cent | F53: Nominal | K53: 2034-06-21 | L53: ='Input|Rate of return'!J52 -> 0.03844 | O53: 2034-12-21 | P53: ='Input|Rate of return'!L52 -> 0.0387 | R53: 2034-09-11 | S53: 0.5519125683 | T53: 0.4480874317 | U53: 0.03855650273 | V53: 0.03892815371
A54: Ok | C54: ='Input|Rate of return'!C53 -> 12-Sep-2024 | D54: Inputs|Rate of return | E54: Per cent | F54: Nominal | K54: 2034-06-21 | L54: ='Input|Rate of return'!J53 -> 0.0385 | O54: 2034-12-21 | P54: ='Input|Rate of return'!L53 -> 0.03874 | R54: 2034-09-12 | S54: 0.5464480874 | T54: 0.4535519126 | U54: 0.03860885246 | V54: 0.03898151333
A55: Ok | C55: ='Input|Rate of return'!C54 -> 13-Sep-2024 | D55: Inputs|Rate of return | E55: Per cent | F55: Nominal | K55: 2034-06-21 | L55: ='Input|Rate of return'!J54 -> 0.03813 | O55: 2034-12-21 | P55: ='Input|Rate of return'!L54 -> 0.03837 | R55: 2034-09-13 | S55: 0.5409836066 | T55: 0.4590163934 | U55: 0.03824016393 | V55: 0.03860574147
A56: Ok | C56: ='Input|Rate of return'!C55 -> 16-Sep-2024 | D56: Inputs|Rate of return | E56: Per cent | F56: Nominal | K56: 2034-06-21 | L56: ='Input|Rate of return'!J55 -> 0.03809 | O56: 2034-12-21 | P56: ='Input|Rate of return'!L55 -> 0.03834 | R56: 2034-09-16 | S56: 0.5245901639 | T56: 0.4754098361 | U56: 0.03820885246 | V56: 0.03857383156
A57: Ok | C57: ='Input|Rate of return'!C56 -> 17-Sep-2024 | D57: Inputs|Rate of return | E57: Per cent | F57: Nominal | K57: 2034-06-21 | L57: ='Input|Rate of return'!J56 -> 0.03828 | O57: 2034-12-21 | P57: ='Input|Rate of return'!L56 -> 0.03854 | R57: 2034-09-17 | S57: 0.5191256831 | T57: 0.4808743169 | U57: 0.03840502732 | V57: 0.03877376385
A58: Ok | C58: ='Input|Rate of return'!C57 -> 18-Sep-2024 | D58: Inputs|Rate of return | E58: Per cent | F58: Nominal | K58: 2034-06-21 | L58: ='Input|Rate of return'!J57 -> 0.03859 | O58: 2034-12-21 | P58: ='Input|Rate of return'!L57 -> 0.03883 | R58: 2034-09-18 | S58: 0.5136612022 | T58: 0.4863387978 | U58: 0.03870672131 | V58: 0.03908127388
A59: Ok | C59: ='Input|Rate of return'!C58 -> 19-Sep-2024 | D59: Inputs|Rate of return | E59: Per cent | F59: Nominal | K59: 2034-06-21 | L59: ='Input|Rate of return'!J58 -> 0.03926 | O59: 2034-12-21 | P59: ='Input|Rate of return'!L58 -> 0.0395 | R59: 2034-09-19 | S59: 0.5081967213 | T59: 0.4918032787 | U59: 0.03937803279 | V59: 0.03976569015
A60: Ok | C60: ='Input|Rate of return'!C59 -> 20-Sep-2024 | D60: Inputs|Rate of return | E60: Per cent | F60: Nominal | K60: 2034-06-21 | L60: ='Input|Rate of return'!J59 -> 0.03916 | O60: 2034-12-21 | P60: ='Input|Rate of return'!L59 -> 0.0394 | R60: 2034-09-20 | S60: 0.5027322404 | T60: 0.4972677596 | U60: 0.03927934426 | V60: 0.03966506098
A61: Ok | C61: ='Input|Rate of return'!C60 -> 23-Sep-2024 | D61: Inputs|Rate of return | E61: Per cent | F61: Nominal | K61: 2034-06-21 | L61: ='Input|Rate of return'!J60 -> 0.03956 | O61: 2034-12-21 | P61: ='Input|Rate of return'!L60 -> 0.03978 | R61: 2034-09-23 | S61: 0.4863387978 | T61: 0.5136612022 | U61: 0.03967300546 | V61: 0.04006649231
A62: Ok | C62: ='Input|Rate of return'!C61 -> 24-Sep-2024 | D62: Inputs|Rate of return | E62: Per cent | F62: Nominal | K62: 2034-06-21 | L62: ='Input|Rate of return'!J61 -> 0.03886 | O62: 2034-12-21 | P62: ='Input|Rate of return'!L61 -> 0.0391 | R62: 2034-09-24 | S62: 0.4808743169 | T62: 0.5191256831 | U62: 0.03898459016 | V62: 0.03936453973
A63: Ok | C63: ='Input|Rate of return'!C62 -> 25-Sep-2024 | D63: Inputs|Rate of return | E63: Per cent | F63: Nominal | K63: 2034-06-21 | L63: ='Input|Rate of return'!J62 -> 0.03905 | O63: 2034-12-21 | P63: ='Input|Rate of return'!L62 -> 0.0393 | R63: 2034-09-25 | S63: 0.4754098361 | T63: 0.5245901639 | U63: 0.03918114754 | V63: 0.03956493812
A64: Ok | C64: ='Input|Rate of return'!C63 -> 26-Sep-2024 | D64: Inputs|Rate of return | E64: Per cent | F64: Nominal | K64: 2034-06-21 | L64: ='Input|Rate of return'!J63 -> 0.03939 | O64: 2034-12-21 | P64: ='Input|Rate of return'!L63 -> 0.03963 | R64: 2034-09-26 | S64: 0.4699453552 | T64: 0.5300546448 | U64: 0.03951721311 | V64: 0.03990761565
C66: Item | D66: Source | E66: Unit | F66: Basis
A68: =IF(ISERROR(V68),"Check","Ok") -> Ok | C68: Risk-free rate estimate | D68: Calculated | E68: Per cent | F68: Nominal | V68: =AVERAGE(V45:V64) -> 0.0395443886
B70: Calc | Cost of debt
C72: Estimates | D72: Source | E72: Unit | F72: Basis | L72: =+L10 -> CY15 | M72: CY16 | N72: CY17 | O72: CY18 | P72: CY19 | Q72: CY20 | R72: HY21 | S72: FY22 | T72: FY23 | U72: FY24 | V72: FY25 | W72: FY26 | X72: FY27 | Y72: FY28 | Z72: FY29 | AA72: FY30 | AB72: FY31
C74: Period | D74: Calculated | E74: =+number -> number | F74: =+Not_Applicable -> n/a | M74: 1 | N74: =+M74+1 -> 2 | O74: =+N74+1 -> 3 | P74: 4 | Q74: 5 | R74: 6 | S74: 7 | T74: 8 | U74: 9 | V74: 10 | W74: 11 | X74: 12 | Y74: 13 | Z74: 14 | AA74: 15 | AB74: 16
C76: Observations
C77: Annual observations | D77: Inputs|Rate of return | E77: Per cent | F77: Nominal | M77: =+IF(ISNA(TRANSPOSE('Input|Rate of return'!J70:J85)), "", TRANSPOSE('Input|Rate of return'!J70:J85)) -> 0.05624604378 | N77: 0.04604423391 | O77: 0.04744558979 | P77: 0.04693992697 | Q77: 0.03735974606 | R77: 0.02402710577 | S77: 0.02069970468 | T77: 0.03512700476 | U77: 0.06704275486 | V77: 0.06602953143 | W77: 0.05962969633 | X77: 0.05962969633 | Y77: 0.05962969633 | Z77: 0.05962969633 | AA77: 0.05962969633 | AB77: 0.05962969633
C79: Weights
C80: New observation | D80: Inputs|Rate of return | E80: Per cent | F80: =+Not_Applicable -> n/a | M80: =IF(ISNUMBER(M$77),Weight_New,NA()) -> 0.1 | N80: 0.1 | O80: 0.1 | P80: 0.1 | Q80: 0.1 | R80: 0.1 | S80: 0.1 | T80: 0.1 | U80: 0.1 | V80: 0.1 | W80: 0.1 | X80: 0.1 | Y80: 0.1 | Z80: 0.1 | AA80: 0.1 | AB80: 0.1
C81: =M$10&" observation" -> CY16 observation | D81: Inputs|Rate of return | E81: Per cent | F81: =+Not_Applicable -> n/a | M81: =IF(ISNUMBER(M$77),Weight_Initial-SUM($M80:M80),NA()) -> 0.9 | N81: =IF(ISNUMBER(N$77),Weight_Initial-SUM($M80:N80),NA()) -> 0.8 | O81: =IF(ISNUMBER(O$77),Weight_Initial-SUM($M80:O80),NA()) -> 0.7 | P81: =IF(ISNUMBER(P$77),Weight_Initial-SUM($M80:P80),NA()) -> 0.6 | Q81: =IF(ISNUMBER(Q$77),Weight_Initial-SUM($M80:Q80),NA()) -> 0.5 | R81: =IF(ISNUMBER(R$77),Weight_Initial-SUM($M80:R80),NA()) -> 0.4 | S81: =IF(ISNUMBER(S$77),Weight_Initial-SUM($M80:$Q$80,$R$84:S$84),NA()) -> 0.35 | T81: =IF(ISNUMBER(T$77),Weight_Initial-SUM($M80:$Q$80,$R$84:T$84),NA()) -> 0.25 | U81: =IF(ISNUMBER(U$77),Weight_Initial-SUM($M80:$Q$80,$R$84:U$84),NA()) -> 0.15 | V81: =IF(ISNUMBER(V$77),Weight_Initial-SUM($M80:$Q$80,$R$84:V$84),NA()) -> 0.05 | W81: =IF(ISNUMBER(W$77),Weight_Initial-SUM($M80:$Q$80,$R$84:W$84),NA()) -> -0.05
C83: Weights after intervening period
C84: New observation | D84: Inputs|Rate of return | E84: Per cent | F84: =+Not_Applicable -> n/a | M84: =+M80 -> 0.1 | N84: =+N80 -> 0.1 | O84: =+O80 -> 0.1 | P84: =+P80 -> 0.1 | Q84: =+Q80 -> 0.1 | R84: =IF(ISNUMBER(R$77),IF(R$3="Intermediate Period",Weight_Intervening,Weight_New),NA()) -> 0.05 | S84: =IF(ISNUMBER(S$77),IF(S$3="Intermediate Period",Weight_Intervening,Weight_New),NA()) -> 0.1 | T84: =IF(ISNUMBER(T$77),IF(T$3="Intermediate Period",Weight_Intervening,Weight_New),NA()) -> 0.1 | U84: =IF(ISNUMBER(U$77),IF(U$3="Intermediate Period",Weight_Intervening,Weight_New),NA()) -> 0.1 | V84: =IF(ISNUMBER(V$77),IF(V$3="Intermediate Period",Weight_Intervening,Weight_New),NA()) -> 0.1 | W84: =IF(ISNUMBER(W$77),IF(W$3="Intermediate Period",Weight_Intervening,Weight_New),NA()) -> 0.1 | X84: =IF(ISNUMBER(X$77),IF(X$3="Intermediate Period",Weight_Intervening,Weight_New),NA()) -> 0.1 | Y84: =IF(ISNUMBER(Y$77),IF(Y$3="Intermediate Period",Weight_Intervening,Weight_New),NA()) -> 0.1 | Z84: =IF(ISNUMBER(Z$77),IF(Z$3="Intermediate Period",Weight_Intervening,Weight_New),NA()) -> 0.1 | AA84: =IF(ISNUMBER(AA$77),IF(AA$3="Intermediate Period",Weight_Intervening,Weight_New),NA()) -> 0.1 | AB84: =IF(ISNUMBER(AB$77),IF(AB$3="Intermediate Period",Weight_Intervening,Weight_New),NA()) -> 0.1
A87: =IF(ISERROR(V87),"Check","Ok") -> Ok | C87: Cost of debt (pre-tax) | D87: Calculated | E87: Per cent | F87: Nominal | M87: =+_xlfn.SWITCH(TRUE, M$74=1,$M77, M$74<=6,$M77*M$81+SUMPRODUCT($M$77:M$77,$M$80:M$80), M$74<=11,$M77*M$81+SUMPRODUCT($M$77:M$77,$M$84:M$84), M$74<=15,SUMPRODUCT(C$77:M$77,C$84:M$84)+OFFSET(M$77,,-10)*Weight_Intervening*-1, M$74>15,SUMPRODUCT(D$77:M$77,D$84:M$84), NA()) -> 0.05624604378 | N87: =+_xlfn.SWITCH(TRUE, N$74=1,$M77, N$74<=6,$M77*N$81+SUMPRODUCT($M$77:N$77,$M$80:N$80), N$74<=11,$M77*N$81+SUMPRODUCT($M$77:N$77,$M$84:N$84), N$74<=15,SUMPRODUCT(D$77:N$77,D$84:N$84)+OFFSET(N$77,,-10)*Weight_Intervening*-1, N$74>15,SUMPRODUCT(E$77:N$77,E$84:N$84), NA()) -> 0.05522586279 | O87: =+_xlfn.SWITCH(TRUE, O$74=1,$M77, O$74<=6,$M77*O$81+SUMPRODUCT($M$77:O$77,$M$80:O$80), O$74<=11,$M77*O$81+SUMPRODUCT($M$77:O$77,$M$84:O$84), O$74<=15,SUMPRODUCT(E$77:O$77,E$84:O$84)+OFFSET(O$77,,-10)*Weight_Intervening*-1, O$74>15,SUMPRODUCT(F$77:O$77,F$84:O$84), NA()) -> 0.05434581739 | P87: =+_xlfn.SWITCH(TRUE, P$74=1,$M77, P$74<=6,$M77*P$81+SUMPRODUCT($M$77:P$77,$M$80:P$80), P$74<=11,$M77*P$81+SUMPRODUCT($M$77:P$77,$M$84:P$84), P$74<=15,SUMPRODUCT(F$77:P$77,F$84:P$84)+OFFSET(P$77,,-10)*Weight_Intervening*-1, P$74>15,SUMPRODUCT(G$77:P$77,G$84:P$84), NA()) -> 0.05341520571 | Q87: =+_xlfn.SWITCH(TRUE, Q$74=1,$M77, Q$74<=6,$M77*Q$81+SUMPRODUCT($M$77:Q$77,$M$80:Q$80), Q$74<=11,$M77*Q$81+SUMPRODUCT($M$77:Q$77,$M$84:Q$84), Q$74<=15,SUMPRODUCT(G$77:Q$77,G$84:Q$84)+OFFSET(Q$77,,-10)*Weight_Intervening*-1, Q$74>15,SUMPRODUCT(H$77:Q$77,H$84:Q$84), NA()) -> 0.05152657594 | R87: =+_xlfn.SWITCH(TRUE, R$74=1,$M77, R$74<=6,$M77*R$81+SUMPRODUCT($M$77:R$77,$M$80:R$80), R$74<=11,$M77*R$81+SUMPRODUCT($M$77:R$77,$M$84:R$84), R$74<=15,SUMPRODUCT(H$77:R$77,H$84:R$84)+OFFSET(R$77,,-10)*Weight_Intervening*-1, R$74>15,SUMPRODUCT(I$77:R$77,I$84:R$84), NA()) -> 0.04830468214 | S87: =+_xlfn.SWITCH(TRUE, S$74=1,$M77, S$74<=6,$M77*S$81+SUMPRODUCT($M$77:S$77,$M$80:S$80), S$74<=11,$M77*S$81+SUMPRODUCT($M$77:S$77,$M$84:S$84), S$74<=15,SUMPRODUCT(I$77:S$77,I$84:S$84)+OFFSET(S$77,,-10)*Weight_Intervening*-1, S$74>15,SUMPRODUCT(J$77:S$77,J$84:S$84), NA()) -> 0.04636099513 | T87: =+_xlfn.SWITCH(TRUE, T$74=1,$M77, T$74<=6,$M77*T$81+SUMPRODUCT($M$77:T$77,$M$80:T$80), T$74<=11,$M77*T$81+SUMPRODUCT($M$77:T$77,$M$84:T$84), T$74<=15,SUMPRODUCT(J$77:T$77,J$84:T$84)+OFFSET(T$77,,-10)*Weight_Intervening*-1, T$74>15,SUMPRODUCT(K$77:T$77,K$84:T$84), NA()) -> 0.04424909123 | U87: =+_xlfn.SWITCH(TRUE, U$74=1,$M77, U$74<=6,$M77*U$81+SUMPRODUCT($M$77:U$77,$M$80:U$80), U$74<=11,$M77*U$81+SUMPRODUCT($M$77:U$77,$M$84:U$84), U$74<=15,SUMPRODUCT(K$77:U$77,K$84:U$84)+OFFSET(U$77,,-10)*Weight_Intervening*-1, U$74>15,SUMPRODUCT(L$77:U$77,L$84:U$84), NA()) -> 0.04532876234 | V87: =+_xlfn.SWITCH(TRUE, V$74=1,$M77, V$74<=6,$M77*V$81+SUMPRODUCT($M$77:V$77,$M$80:V$80), V$74<=11,$M77*V$81+SUMPRODUCT($M$77:V$77,$M$84:V$84), V$74<=15,SUMPRODUCT(L$77:V$77,L$84:V$84)+OFFSET(V$77,,-10)*Weight_Intervening*-1, V$74>15,SUMPRODUCT(M$77:V$77,M$84:V$84), NA()) -> 0.0463071111 | W87: =+_xlfn.SWITCH(TRUE, W$74=1,$M77, W$74<=6,$M77*W$81+SUMPRODUCT($M$77:W$77,$M$80:W$80), W$74<=11,$M77*W$81+SUMPRODUCT($M$77:W$77,$M$84:W$84), W$74<=15,SUMPRODUCT(M$77:W$77,M$84:W$84)+OFFSET(W$77,,-10)*Weight_Intervening*-1, W$74>15,SUMPRODUCT(N$77:W$77,N$84:W$84), NA()) -> 0.04664547636 | X87: =+_xlfn.SWITCH(TRUE, X$74=1,$M77, X$74<=6,$M77*X$81+SUMPRODUCT($M$77:X$77,$M$80:X$80), X$74<=11,$M77*X$81+SUMPRODUCT($M$77:X$77,$M$84:X$84), X$74<=15,SUMPRODUCT(N$77:X$77,N$84:X$84)+OFFSET(X$77,,-10)*Weight_Intervening*-1, X$74>15,SUMPRODUCT(O$77:X$77,O$84:X$84), NA()) -> 0.0474939321 | Y87: =+_xlfn.SWITCH(TRUE, Y$74=1,$M77, Y$74<=6,$M77*Y$81+SUMPRODUCT($M$77:Y$77,$M$80:Y$80), Y$74<=11,$M77*Y$81+SUMPRODUCT($M$77:Y$77,$M$84:Y$84), Y$74<=15,SUMPRODUCT(O$77:Y$77,O$84:Y$84)+OFFSET(Y$77,,-10)*Weight_Intervening*-1, Y$74>15,SUMPRODUCT(P$77:Y$77,P$84:Y$84), NA()) -> 0.04878241055 | Z87: =+_xlfn.SWITCH(TRUE, Z$74=1,$M77, Z$74<=6,$M77*Z$81+SUMPRODUCT($M$77:Z$77,$M$80:Z$80), Z$74<=11,$M77*Z$81+SUMPRODUCT($M$77:Z$77,$M$84:Z$84), Z$74<=15,SUMPRODUCT(P$77:Z$77,P$84:Z$84)+OFFSET(Z$77,,-10)*Weight_Intervening*-1, Z$74>15,SUMPRODUCT(Q$77:Z$77,Q$84:Z$84), NA()) -> 0.05002610435 | AA87: =+_xlfn.SWITCH(TRUE, AA$74=1,$M77, AA$74<=6,$M77*AA$81+SUMPRODUCT($M$77:AA$77,$M$80:AA$80), AA$74<=11,$M77*AA$81+SUMPRODUCT($M$77:AA$77,$M$84:AA$84), AA$74<=15,SUMPRODUCT(Q$77:AA$77,Q$84:AA$84)+OFFSET(AA$77,,-10)*Weight_Intervening*-1, AA$74>15,SUMPRODUCT(R$77:AA$77,R$84:AA$84), NA()) -> 0.05177409033 | AB87: =+_xlfn.SWITCH(TRUE, AB$74=1,$M77, AB$74<=6,$M77*AB$81+SUMPRODUCT($M$77:AB$77,$M$80:AB$80), AB$74<=11,$M77*AB$81+SUMPRODUCT($M$77:AB$77,$M$84:AB$84), AB$74<=15,SUMPRODUCT(R$77:AB$77,R$84:AB$84)+OFFSET(AB$77,,-10)*Weight_Intervening*-1, AB$74>15,SUMPRODUCT(S$77:AB$77,S$84:AB$84), NA()) -> 0.05466771737
B89: Calc | Cost of equity
C91: Estimates | D91: Source | E91: Unit | F91: Basis | K91: Returns
C93: Parameters
C94: Risk-free rate | D94: Above | E94: =percent -> Per cent | F94: Nominal | K94: =Rfr -> 0.0395443886
C95: Market risk premium | D95: Inputs|Rate of return | E95: =percent -> Per cent | F95: Nominal | K95: =MRP -> 0.062
C96: Equity beta | D96: Inputs|Rate of return | E96: =percent -> Per cent | F96: Nominal | K96: =Equity_Beta -> 0.6
A98: =IF(ISERROR(K98),"Check","Ok") -> Ok | C98: Cost of equity (post-tax) estimate | D98: Calculated | E98: Per cent | F98: Nominal | K98: =K94+K95*K96 -> 0.0767443886 | L98: <- The cost of equity is estimated using the Sharpe-Lintner CAPM)
B101: End

Sheet Output|Rate of return
C1: =Index!$C$1 -> EDPR 2027-31 JEN - Rate of Return Model | G1: Section Check: | H1: =IF(COUNTA($A$8:$A$54)=COUNTIF($A$8:$A$54,"OK"),"OK","Check") -> OK | J1: Back to Index | L1: Key: | M1: Input | N1: Internal links | O1: External links | P1: Drop-down | Q1: Calculation | R1: Unique | S1: Empty
C2: =Index!$C$15 -> Output|Rate of return | G2: Overall Check: | H2: ='Check|List'!$H$2 -> OK
L3: Prior | M3: Previous Regulatory Period | R3: Intermediate Period | S3: Current Regulatory Period | X3: Next Regulatory Period
D4: Source | E4: Unit | F4: Basis | G4: Timing | L4: =+'Input|Indicators'!L$18 -> CY15 | M4: =+'Input|Indicators'!M$18 -> CY16 | N4: =+'Input|Indicators'!N$18 -> CY17 | O4: =+'Input|Indicators'!O$18 -> CY18 | P4: =+'Input|Indicators'!P$18 -> CY19 | Q4: =+'Input|Indicators'!Q$18 -> CY20 | R4: =+'Input|Indicators'!R$18 -> HY21 | S4: =+'Input|Indicators'!S$18 -> FY22 | T4: =+'Input|Indicators'!T$18 -> FY23 | U4: =+'Input|Indicators'!U$18 -> FY24 | V4: =+'Input|Indicators'!V$18 -> FY25 | W4: =+'Input|Indicators'!W$18 -> FY26 | X4: =+'Input|Indicators'!X$18 -> FY27 | Y4: =+'Input|Indicators'!Y$18 -> FY28 | Z4: =+'Input|Indicators'!Z$18 -> FY29 | AA4: =+'Input|Indicators'!AA$18 -> FY30 | AB4: =+'Input|Indicators'!AB$18 -> FY31
B6: Copyright Jemena Limited. All rights reserved. Jemena is not liable for any loss caused by reliance on this document.
B8: Inputs for JEN Revenue Model
C10: Rate of return | D10: Source | E10: Unit | F10: Basis | X10: =+'Input|Indicators'!X18 -> FY27 | Y10: =+'Input|Indicators'!Y18 -> FY28 | Z10: =+'Input|Indicators'!Z18 -> FY29 | AA10: =+'Input|Indicators'!AA18 -> FY30 | AB10: =+'Input|Indicators'!AB18 -> FY31
A12: =IF(ISERROR(X12),"Check","Ok") -> Ok | C12: Cost of equity (post-tax) | D12: Calc|Rate of return | E12: =+percent -> Per cent | F12: =+Nominal -> Nominal | X12: =Cost_of_Equity -> 0.0767443886
A13: =IF(ISERROR(X13),"Check","Ok") -> Ok | C13: Cost of debt (pre-tax) | D13: Calc|Rate of return | E13: =+percent -> Per cent | F13: =+Nominal -> Nominal | X13: =+INDEX('Calc|Rate of return'!$M$87:$AB$87,MATCH('Output|Rate of return'!X$10,'Calc|Rate of return'!$M$72:$AB$72,0)) -> 0.0474939321 | Y13: =+INDEX('Calc|Rate of return'!$M$87:$AB$87,MATCH('Output|Rate of return'!Y$10,'Calc|Rate of return'!$M$72:$AB$72,0)) -> 0.04878241055 | Z13: =+INDEX('Calc|Rate of return'!$M$87:$AB$87,MATCH('Output|Rate of return'!Z$10,'Calc|Rate of return'!$M$72:$AB$72,0)) -> 0.05002610435 | AA13: =+INDEX('Calc|Rate of return'!$M$87:$AB$87,MATCH('Output|Rate of return'!AA$10,'Calc|Rate of return'!$M$72:$AB$72,0)) -> 0.05177409033 | AB13: =+INDEX('Calc|Rate of return'!$M$87:$AB$87,MATCH('Output|Rate of return'!AB$10,'Calc|Rate of return'!$M$72:$AB$72,0)) -> 0.05466771737
A14: =IF(ISERROR(X14),"Check","Ok") -> Ok | C14: Leverage | D14: Inputs|Rate of return | E14: =+percent -> Per cent | F14: =+Nominal -> Nominal | X14: =Leverage -> 0.6
A15: =IF(ISERROR(X15),"Check","Ok") -> Ok | C15: Gamma | D15: Inputs|Rate of return | E15: =+percent -> Per cent | F15: =+Nominal -> Nominal | X15: =Gamma -> 0.57
A16: =IF(ISERROR(X16),"Check","Ok") -> Ok | C16: Tax rate | D16: Inputs|Rate of return | E16: =+percent -> Per cent | F16: =+Nominal -> Nominal | X16: =Tax -> 0.3
A18: =IF(ISERROR(X18),"Check","Ok") -> Ok | C18: Nominal vanilla WACC | D18: Calc | E18: =+percent -> Per cent | F18: =+Nominal -> Nominal | X18: =$X$12*(1-$X$14)+X13*$X$14 -> 0.0591941147 | Y18: =$X$12*(1-$X$14)+Y13*$X$14 -> 0.05996720177 | Z18: =$X$12*(1-$X$14)+Z13*$X$14 -> 0.06071341805 | AA18: =$X$12*(1-$X$14)+AA13*$X$14 -> 0.06176220964 | AB18: =$X$12*(1-$X$14)+AB13*$X$14 -> 0.06349838586
C20: Debt and equity raising costs | D20: Source | E20: Unit | F20: Basis | X20: Estimates
A22: =IF(ISERROR(X22),"Check","Ok") -> Ok | C22: Debt raising costs | D22: Inputs|Rate of return | E22: Per cent | F22: Nominal | X22: ='Input|Rate of return'!J112 -> 0.000884
A23: =IF(ISERROR(X23),"Check","Ok") -> Ok | C23: Dividend / imputation payout ratio | D23: Inputs|Rate of return | E23: Per cent | F23: Nominal | X23: ='Input|Rate of return'!J113 -> 0.878670689
A24: =IF(ISERROR(X24),"Check","Ok") -> Ok | C24: Benchmark SEO raising cost | D24: Inputs|Rate of return | E24: Per cent | F24: Nominal | X24: ='Input|Rate of return'!J114 -> 0.03
A25: =IF(ISERROR(X25),"Check","Ok") -> Ok | C25: Benchmark DRP cost | D25: Inputs|Rate of return | E25: Per cent | F25: Nominal | X25: ='Input|Rate of return'!J115 -> 0.01
A26: =IF(ISERROR(X26),"Check","Ok") -> Ok | C26: Benchmark DRP takeup | D26: Inputs|Rate of return | E26: Per cent | F26: Nominal | X26: ='Input|Rate of return'!J116 -> 0.3
B28: Inputs for JEN Revenue Model
L30: ABS Data | T30: RBA Forecast/Glide path to target
C31: Inflation | D31: Source | E31: Unit | F31: Basis | L31: =+'Input|Indicators'!L18 -> CY15 | M31: =+'Input|Indicators'!M18 -> CY16 | N31: =+'Input|Indicators'!N18 -> CY17 | O31: =+'Input|Indicators'!O18 -> CY18 | P31: =+'Input|Indicators'!P18 -> CY19 | Q31: =+'Input|Indicators'!Q18 -> CY20 | R31: =+'Input|Indicators'!R18 -> HY21 | S31: =+'Input|Indicators'!S18 -> FY22 | T31: =+'Input|Indicators'!T18 -> FY23 | U31: =+'Input|Indicators'!U18 -> FY24 | V31: =+'Input|Indicators'!V18 -> FY25 | W31: =+'Input|Indicators'!W18 -> FY26 | X31: =+'Input|Indicators'!X18 -> FY27 | Y31: =+'Input|Indicators'!Y18 -> FY28 | Z31: =+'Input|Indicators'!Z18 -> FY29 | AA31: =+'Input|Indicators'!AA18 -> FY30 | AB31: =+'Input|Indicators'!AB18 -> FY31
A33: =+IF(ISNUMBER(SUM(P33:W33)),"Ok","Check") -> Ok | C33: Inflation Rate (Opex) | D33: Input|Rate of return | E33: Per cent | F33: n/a | L33: =+'Input|Rate of return'!L12 -> 0.01688555347 | M33: =+'Input|Rate of return'!M12 -> 0.0147601476 | N33: =+'Input|Rate of return'!N12 -> 0.01909090909 | O33: =+'Input|Rate of return'!O12 -> 0.0178412132 | P33: =+'Input|Rate of return'!P12 -> 0.01840490798 | Q33: =+'Input|Rate of return'!Q12 -> 0.008605851979 | R33: =+'Input|Rate of return'!R12 -> 0.01365187713 | S33: =+'Input|Rate of return'!S12 -> 0.06144781145 | T33: =+'Input|Rate of return'!T12 -> 0.06026962728 | U33: =+'Input|Rate of return'!U12 -> 0.03814510097 | V33: =+'Input|Rate of return'!V13 -> 0.025 | W33: =+'Input|Rate of return'!W13 -> 0.031 | X33: =+'Calc|Rate of return'!X13 -> 0.025 | Y33: =+'Calc|Rate of return'!Y13 -> 0.025 | Z33: =+'Calc|Rate of return'!Z13 -> 0.025 | AA33: =+'Calc|Rate of return'!AA13 -> 0.025 | AB33: =+'Calc|Rate of return'!AB13 -> 0.025
A34: =+IF(ISNUMBER(SUM(P34:W34)),"Ok","Check") -> Ok | C34: Inflation Rate (Capex) | D34: Input|Rate of return | E34: Per cent | F34: n/a | L34: =+'Input|Rate of return'!L19 -> 0.02307692308 | M34: =+'Input|Rate of return'!M19 -> 0.01510859301 | N34: =+'Input|Rate of return'!N19 -> 0.01023255814 | O34: =+'Input|Rate of return'!O19 -> 0.01933701657 | P34: =+'Input|Rate of return'!P19 -> 0.02077687444 | Q34: =+'Input|Rate of return'!Q19 -> 0.01592920354 | R34: =+'Input|Rate of return'!R19 -> 0.01219512195 | S34: =+'Input|Rate of return'!S19 -> 0.008605851979 | T34: =+'Input|Rate of return'!T19 -> 0.03498293515 | U34: =+'Input|Rate of return'!U19 -> 0.07831821929 | V34: =+'Input|Rate of return'!V19 -> 0.04051987768 | W34: =+'Input|Rate of return'!W20 -> 0.026 | X34: =+'Calc|Rate of return'!X12 -> 0.025 | Y34: =+'Calc|Rate of return'!Y12 -> 0.025 | Z34: =+'Calc|Rate of return'!Z12 -> 0.025 | AA34: =+'Calc|Rate of return'!AA12 -> 0.025 | AB34: =+'Calc|Rate of return'!AB12 -> 0.025
C36: Opex - Indices
A37: =+IF(ISNUMBER(SUM(P37:W37)),"Ok","Check") -> Ok | C37: ='Calc|Rate of return'!C22 -> Real 2024 (Mid-year) to Nominal (Mid-year) | D37: Calc|Rate of return | E37: ='Calc|Rate of return'!E22 -> factor | F37: n/a | L37: ='Calc|Rate of return'!L22 -> 0.789101387 | M37: ='Calc|Rate of return'!M22 -> 0.8015867817 | N37: ='Calc|Rate of return'!N22 -> 0.8151522135 | O37: ='Calc|Rate of return'!O22 -> 0.8302047079 | P37: ='Calc|Rate of return'!P22 -> 0.8452505257 | Q37: ='Calc|Rate of return'!Q22 -> 0.8566559451 | R37: ='Calc|Rate of return'!R22 -> 0.8661868565 | S37: ='Calc|Rate of return'!S22 -> 0.8984736129 | T37: ='Calc|Rate of return'!T22 -> 0.9531534194 | U37: ='Calc|Rate of return'!U22 -> 1 | V37: ='Calc|Rate of return'!V22 -> 1.031551612 | W37: ='Calc|Rate of return'!W22 -> 1.060430542 | X37: ='Calc|Rate of return'!X22 -> 1.090117955 | Y37: ='Calc|Rate of return'!Y22 -> 1.117370904 | Z37: ='Calc|Rate of return'!Z22 -> 1.145305176 | AA37: ='Calc|Rate of return'!AA22 -> 1.173937806 | AB37: ='Calc|Rate of return'!AB22 -> 1.203286251
A38: =+IF(ISNUMBER(SUM(P38:W38)),"Ok","Check") -> Ok | C38: ='Calc|Rate of return'!C23 -> Nominal (Mid-year) to Real 2026 (End-year) | D38: Calc|Rate of return | E38: ='Calc|Rate of return'!E23 -> factor | F38: n/a | L38: ='Calc|Rate of return'!L23 -> 1.36451638 | M38: ='Calc|Rate of return'!M23 -> 1.343262879 | N38: ='Calc|Rate of return'!N23 -> 1.320908844 | O38: ='Calc|Rate of return'!O23 -> 1.296959362 | P38: ='Calc|Rate of return'!P23 -> 1.273872935 | Q38: ='Calc|Rate of return'!Q23 -> 1.256912736 | R38: ='Calc|Rate of return'!R23 -> 1.243082552 | S38: ='Calc|Rate of return'!S23 -> 1.198412232 | T38: ='Calc|Rate of return'!T23 -> 1.129662598 | U38: ='Calc|Rate of return'!U23 -> 1.076741768 | V38: ='Calc|Rate of return'!V23 -> 1.043807944 | W38: ='Calc|Rate of return'!W23 -> 1.015381702 | X38: ='Calc|Rate of return'!X23 -> 0.9877295966 | Y38: ='Calc|Rate of return'!Y23 -> 0.9636386309 | Z38: ='Calc|Rate of return'!Z23 -> 0.9401352496 | AA38: ='Calc|Rate of return'!AA23 -> 0.9172051216 | AB38: ='Calc|Rate of return'!AB23 -> 0.894834265
A39: Ok | C39: ='Calc|Rate of return'!C24 -> Real 2021 (End-year) to Real 2026 (End-year) | D39: Calc|Rate of return | E39: ='Calc|Rate of return'!E24 -> factor | F39: n/a | L39: ='Calc|Rate of return'!L24 -> 1.234683249 | M39: ='Calc|Rate of return'!M24 -> 1.234683249 | N39: ='Calc|Rate of return'!N24 -> 1.234683249 | O39: ='Calc|Rate of return'!O24 -> 1.234683249 | P39: ='Calc|Rate of return'!P24 -> 1.234683249 | Q39: ='Calc|Rate of return'!Q24 -> 1.234683249 | R39: ='Calc|Rate of return'!R24 -> 1.234683249 | S39: ='Calc|Rate of return'!S24 -> 1.234683249 | T39: ='Calc|Rate of return'!T24 -> 1.234683249 | U39: ='Calc|Rate of return'!U24 -> 1.234683249 | V39: ='Calc|Rate of return'!V24 -> 1.234683249 | W39: ='Calc|Rate of return'!W24 -> 1.234683249 | X39: ='Calc|Rate of return'!X24 -> 1.234683249 | Y39: ='Calc|Rate of return'!Y24 -> 1.234683249 | Z39: ='Calc|Rate of return'!Z24 -> 1.234683249 | AA39: ='Calc|Rate of return'!AA24 -> 1.234683249 | AB39: ='Calc|Rate of return'!AB24 -> 1.234683249
A40: Ok | C40: ='Calc|Rate of return'!C25 -> Real 2015 (End-year) to Real 2026 (End-year) | D40: Calc|Rate of return | E40: ='Calc|Rate of return'!E25 -> factor | F40: n/a | L40: ='Calc|Rate of return'!L25 -> 1.353139945 | M40: ='Calc|Rate of return'!M25 -> 1.353139945 | N40: ='Calc|Rate of return'!N25 -> 1.353139945 | O40: ='Calc|Rate of return'!O25 -> 1.353139945 | P40: ='Calc|Rate of return'!P25 -> 1.353139945 | Q40: ='Calc|Rate of return'!Q25 -> 1.353139945 | R40: ='Calc|Rate of return'!R25 -> 1.353139945 | S40: ='Calc|Rate of return'!S25 -> 1.353139945 | T40: ='Calc|Rate of return'!T25 -> 1.353139945 | U40: ='Calc|Rate of return'!U25 -> 1.353139945 | V40: ='Calc|Rate of return'!V25 -> 1.353139945 | W40: ='Calc|Rate of return'!W25 -> 1.353139945 | X40: ='Calc|Rate of return'!X25 -> 1.353139945 | Y40: ='Calc|Rate of return'!Y25 -> 1.353139945 | Z40: ='Calc|Rate of return'!Z25 -> 1.353139945 | AA40: ='Calc|Rate of return'!AA25 -> 1.353139945 | AB40: ='Calc|Rate of return'!AB25 -> 1.353139945
A41: Ok | C41: ='Calc|Rate of return'!C26 -> Real 2026 (End-year) to Nominal (End-year) | D41: Calc|Rate of return | E41: ='Calc|Rate of return'!E26 -> factor | F41: n/a | L41: ='Calc|Rate of return'!L26 -> 0.7390218609 | M41: ='Calc|Rate of return'!M26 -> 0.7499299327 | N41: ='Calc|Rate of return'!N26 -> 0.7642467769 | O41: ='Calc|Rate of return'!O26 -> 0.7778818665 | P41: ='Calc|Rate of return'!P26 -> 0.7921987107 | Q41: ='Calc|Rate of return'!Q26 -> 0.7990162555 | R41: ='Calc|Rate of return'!R26 -> 0.8099243273 | S41: ='Calc|Rate of return'!S26 -> 0.8596924046 | T41: ='Calc|Rate of return'!T26 -> 0.9115057455 | U41: ='Calc|Rate of return'!U26 -> 0.9462752241 | V41: ='Calc|Rate of return'!V26 -> 0.9699321048 | W41: ='Calc|Rate of return'!W26 -> 1 | X41: ='Calc|Rate of return'!X26 -> 1.025 | Y41: ='Calc|Rate of return'!Y26 -> 1.050625 | Z41: ='Calc|Rate of return'!Z26 -> 1.076890625 | AA41: ='Calc|Rate of return'!AA26 -> 1.103812891 | AB41: ='Calc|Rate of return'!AB26 -> 1.131408213
A42: Ok | C42: ='Calc|Rate of return'!C27 -> Real 2024 (End-year) to Real 2026 (End-year) | D42: Calc|Rate of return | E42: ='Calc|Rate of return'!E27 -> factor | F42: n/a | L42: ='Calc|Rate of return'!L27 -> 1.056775 | M42: ='Calc|Rate of return'!M27 -> 1.056775 | N42: ='Calc|Rate of return'!N27 -> 1.056775 | O42: ='Calc|Rate of return'!O27 -> 1.056775 | P42: ='Calc|Rate of return'!P27 -> 1.056775 | Q42: ='Calc|Rate of return'!Q27 -> 1.056775 | R42: ='Calc|Rate of return'!R27 -> 1.056775 | S42: ='Calc|Rate of return'!S27 -> 1.056775 | T42: ='Calc|Rate of return'!T27 -> 1.056775 | U42: ='Calc|Rate of return'!U27 -> 1.056775 | V42: ='Calc|Rate of return'!V27 -> 1.056775 | W42: ='Calc|Rate of return'!W27 -> 1.056775 | X42: ='Calc|Rate of return'!X27 -> 1.056775 | Y42: ='Calc|Rate of return'!Y27 -> 1.056775 | Z42: ='Calc|Rate of return'!Z27 -> 1.056775 | AA42: ='Calc|Rate of return'!AA27 -> 1.056775 | AB42: ='Calc|Rate of return'!AB27 -> 1.056775
A43: Ok | C43: ='Calc|Rate of return'!C28 -> [Spare] | D43: Calc|Rate of return | E43: ='Calc|Rate of return'!E28 -> factor | F43: n/a | L43: ='Calc|Rate of return'!L28 -> 1 | M43: ='Calc|Rate of return'!M28 -> 1 | N43: ='Calc|Rate of return'!N28 -> 1 | O43: ='Calc|Rate of return'!O28 -> 1 | P43: ='Calc|Rate of return'!P28 -> 1 | Q43: ='Calc|Rate of return'!Q28 -> 1 | R43: ='Calc|Rate of return'!R28 -> 1 | S43: ='Calc|Rate of return'!S28 -> 1 | T43: ='Calc|Rate of return'!T28 -> 1 | U43: ='Calc|Rate of return'!U28 -> 1 | V43: ='Calc|Rate of return'!V28 -> 1 | W43: ='Calc|Rate of return'!W28 -> 1 | X43: ='Calc|Rate of return'!X28 -> 1 | Y43: ='Calc|Rate of return'!Y28 -> 1 | Z43: ='Calc|Rate of return'!Z28 -> 1 | AA43: ='Calc|Rate of return'!AA28 -> 1 | AB43: ='Calc|Rate of return'!AB28 -> 1
C45: Capex & RFM - Indices
A46: =+IF(ISNUMBER(SUM(P46:W46)),"Ok","Check") -> Ok | C46: ='Calc|Rate of return'!C32 -> Real 2024 (End-year) to Real 2026 (End-year) | D46: Calc|Rate of return | E46: ='Calc|Rate of return'!E32 -> factor | F46: n/a | L46: ='Calc|Rate of return'!L32 -> 1.067573394 | M46: ='Calc|Rate of return'!M32 -> 1.067573394 | N46: ='Calc|Rate of return'!N32 -> 1.067573394 | O46: ='Calc|Rate of return'!O32 -> 1.067573394 | P46: ='Calc|Rate of return'!P32 -> 1.067573394 | Q46: ='Calc|Rate of return'!Q32 -> 1.067573394 | R46: ='Calc|Rate of return'!R32 -> 1.067573394 | S46: ='Calc|Rate of return'!S32 -> 1.067573394 | T46: ='Calc|Rate of return'!T32 -> 1.067573394 | U46: ='Calc|Rate of return'!U32 -> 1.067573394 | V46: ='Calc|Rate of return'!V32 -> 1.067573394 | W46: ='Calc|Rate of return'!W32 -> 1.067573394 | X46: ='Calc|Rate of return'!X32 -> 1.067573394 | Y46: ='Calc|Rate of return'!Y32 -> 1.067573394 | Z46: ='Calc|Rate of return'!Z32 -> 1.067573394 | AA46: ='Calc|Rate of return'!AA32 -> 1.067573394 | AB46: ='Calc|Rate of return'!AB32 -> 1.067573394
A47: =+IF(ISNUMBER(SUM(P47:W47)),"Ok","Check") -> Ok | C47: ='Calc|Rate of return'!C33 -> Real 2017 (End-year) to Real 2026 (End-year) | D47: Calc|Rate of return | E47: ='Calc|Rate of return'!E33 -> factor | F47: n/a | L47: ='Calc|Rate of return'!L33 -> 1.28580663 | M47: ='Calc|Rate of return'!M33 -> 1.28580663 | N47: ='Calc|Rate of return'!N33 -> 1.28580663 | O47: ='Calc|Rate of return'!O33 -> 1.28580663 | P47: ='Calc|Rate of return'!P33 -> 1.28580663 | Q47: ='Calc|Rate of return'!Q33 -> 1.28580663 | R47: ='Calc|Rate of return'!R33 -> 1.28580663 | S47: ='Calc|Rate of return'!S33 -> 1.28580663 | T47: ='Calc|Rate of return'!T33 -> 1.28580663 | U47: ='Calc|Rate of return'!U33 -> 1.28580663 | V47: ='Calc|Rate of return'!V33 -> 1.28580663 | W47: ='Calc|Rate of return'!W33 -> 1.28580663 | X47: ='Calc|Rate of return'!X33 -> 1.28580663 | Y47: ='Calc|Rate of return'!Y33 -> 1.28580663 | Z47: ='Calc|Rate of return'!Z33 -> 1.28580663 | AA47: ='Calc|Rate of return'!AA33 -> 1.28580663 | AB47: ='Calc|Rate of return'!AB33 -> 1.28580663
A48: Ok | C48: ='Calc|Rate of return'!C34 -> Real 2026 (End-year) to Nominal (End-year) | D48: Calc|Rate of return | E48: ='Calc|Rate of return'!E34 -> factor | F48: n/a | L48: ='Calc|Rate of return'!L34 -> 0.7583862915 | M48: ='Calc|Rate of return'!M34 -> 0.7698444413 | N48: ='Calc|Rate of return'!N34 -> 0.7777219193 | O48: ='Calc|Rate of return'!O34 -> 0.7927607409 | P48: ='Calc|Rate of return'!P34 -> 0.8092318313 | Q48: ='Calc|Rate of return'!Q34 -> 0.8221222499 | R48: ='Calc|Rate of return'!R34 -> 0.832148131 | S48: ='Calc|Rate of return'!S34 -> 0.8393094746 | T48: ='Calc|Rate of return'!T34 -> 0.8686709835 | U48: ='Calc|Rate of return'!U34 -> 0.9367037481 | V48: ='Calc|Rate of return'!V34 -> 0.9746588694 | W48: ='Calc|Rate of return'!W34 -> 1 | X48: ='Calc|Rate of return'!X34 -> 1.025 | Y48: ='Calc|Rate of return'!Y34 -> 1.050625 | Z48: ='Calc|Rate of return'!Z34 -> 1.076890625 | AA48: ='Calc|Rate of return'!AA34 -> 1.103812891 | AB48: ='Calc|Rate of return'!AB34 -> 1.131408213
A49: Ok | C49: ='Calc|Rate of return'!C35 -> Real 2026 (End-year) to Nominal (Mid-year) | D49: Calc|Rate of return | E49: ='Calc|Rate of return'!E35 -> factor | F49: n/a | L49: ='Calc|Rate of return'!L35 -> 0.7497842784 | M49: ='Calc|Rate of return'!M35 -> 0.7640938888 | N49: ='Calc|Rate of return'!N35 -> 0.7737731557 | O49: ='Calc|Rate of return'!O35 -> 0.7852053266 | P49: ='Calc|Rate of return'!P35 -> 0.8009539476 | Q49: ='Calc|Rate of return'!Q35 -> 0.8156515762 | R49: ='Calc|Rate of return'!R35 -> 0.8271199995 | S49: ='Calc|Rate of return'!S35 -> 0.8357211321 | T49: ='Calc|Rate of return'!T35 -> 0.853864033 | U49: ='Calc|Rate of return'!U35 -> 0.9020462106 | V49: ='Calc|Rate of return'!V35 -> 0.9554928655 | W49: ='Calc|Rate of return'!W35 -> 0.9872481296 | X49: ='Calc|Rate of return'!X35 -> 1.012422837 | Y49: ='Calc|Rate of return'!Y35 -> 1.037733407 | Z49: ='Calc|Rate of return'!Z35 -> 1.063676743 | AA49: ='Calc|Rate of return'!AA35 -> 1.090268661 | AB49: ='Calc|Rate of return'!AB35 -> 1.117525378
A50: Ok | C50: ='Calc|Rate of return'!C36 -> Nominal (Mid-year) to Real 2026 (End-year) | D50: Calc|Rate of return | E50: ='Calc|Rate of return'!E36 -> factor | F50: n/a | L50: ='Calc|Rate of return'!L36 -> 1.333716949 | M50: ='Calc|Rate of return'!M36 -> 1.308739691 | N50: ='Calc|Rate of return'!N36 -> 1.292368432 | O50: ='Calc|Rate of return'!O36 -> 1.273552237 | P50: ='Calc|Rate of return'!P36 -> 1.248511232 | Q50: ='Calc|Rate of return'!Q36 -> 1.226013692 | R50: ='Calc|Rate of return'!R36 -> 1.209014412 | S50: ='Calc|Rate of return'!S36 -> 1.196571394 | T50: ='Calc|Rate of return'!T36 -> 1.171146648 | U50: ='Calc|Rate of return'!U36 -> 1.108590656 | V50: ='Calc|Rate of return'!V36 -> 1.04658029 | W50: ='Calc|Rate of return'!W36 -> 1.012916581 | X50: ='Calc|Rate of return'!X36 -> 0.9877295966 | Y50: ='Calc|Rate of return'!Y36 -> 0.9636386309 | Z50: ='Calc|Rate of return'!Z36 -> 0.9401352496 | AA50: ='Calc|Rate of return'!AA36 -> 0.9172051216 | AB50: ='Calc|Rate of return'!AB36 -> 0.894834265
A51: Ok | C51: ='Calc|Rate of return'!C37 -> Real 2021 (End-year) to Real 2026 (End-year) | D51: Calc|Rate of return | E51: ='Calc|Rate of return'!E37 -> factor | F51: n/a | L51: ='Calc|Rate of return'!L37 -> 1.201709122 | M51: ='Calc|Rate of return'!M37 -> 1.201709122 | N51: ='Calc|Rate of return'!N37 -> 1.201709122 | O51: ='Calc|Rate of return'!O37 -> 1.201709122 | P51: ='Calc|Rate of return'!P37 -> 1.201709122 | Q51: ='Calc|Rate of return'!Q37 -> 1.201709122 | R51: ='Calc|Rate of return'!R37 -> 1.201709122 | S51: ='Calc|Rate of return'!S37 -> 1.201709122 | T51: ='Calc|Rate of return'!T37 -> 1.201709122 | U51: ='Calc|Rate of return'!U37 -> 1.201709122 | V51: ='Calc|Rate of return'!V37 -> 1.201709122 | W51: ='Calc|Rate of return'!W37 -> 1.201709122 | X51: ='Calc|Rate of return'!X37 -> 1.201709122 | Y51: ='Calc|Rate of return'!Y37 -> 1.201709122 | Z51: ='Calc|Rate of return'!Z37 -> 1.201709122 | AA51: ='Calc|Rate of return'!AA37 -> 1.201709122 | AB51: ='Calc|Rate of return'!AB37 -> 1.201709122
A52: Ok | C52: ='Calc|Rate of return'!C38 -> Real 2015 (End-year) to Real 2026 (End-year) | D52: Calc|Rate of return | E52: ='Calc|Rate of return'!E38 -> factor | F52: n/a | L52: ='Calc|Rate of return'!L38 -> 1.318589235 | M52: ='Calc|Rate of return'!M38 -> 1.318589235 | N52: ='Calc|Rate of return'!N38 -> 1.318589235 | O52: ='Calc|Rate of return'!O38 -> 1.318589235 | P52: ='Calc|Rate of return'!P38 -> 1.318589235 | Q52: ='Calc|Rate of return'!Q38 -> 1.318589235 | R52: ='Calc|Rate of return'!R38 -> 1.318589235 | S52: ='Calc|Rate of return'!S38 -> 1.318589235 | T52: ='Calc|Rate of return'!T38 -> 1.318589235 | U52: ='Calc|Rate of return'!U38 -> 1.318589235 | V52: ='Calc|Rate of return'!V38 -> 1.318589235 | W52: ='Calc|Rate of return'!W38 -> 1.318589235 | X52: ='Calc|Rate of return'!X38 -> 1.318589235 | Y52: ='Calc|Rate of return'!Y38 -> 1.318589235 | Z52: ='Calc|Rate of return'!Z38 -> 1.318589235 | AA52: ='Calc|Rate of return'!AA38 -> 1.318589235 | AB52: ='Calc|Rate of return'!AB38 -> 1.318589235
B54: End

Sheet Lookup|Tables
C1: =Index!$C$1 -> EDPR 2027-31 JEN - Rate of Return Model | J1: Back to Index | L1: Key: | M1: Input | N1: Internal links | O1: External links | P1: Drop-down | Q1: Calculation | R1: Unique | S1: Empty
C2: =Index!$C$16 -> Lookup|Tables | G2: Overall Check: | H2: ='Check|List'!$H$2 -> OK
B5: Copyright Jemena Limited. All rights reserved. Jemena is not liable for any loss caused by reliance on this document.
B7: Lookup table
C9: Financial Unit Denomination | D9: Source | G9: Ref
C10: Dollars | D10: Reg Team | G10: $dollars
C11: Thousands | D11: Reg Team | G11: $000
C12: Millions | D12: Reg Team | G12: $millions
C14: Non-financial Unit Denomination
C15: Percent | D15: Reg Team | G15: Per cent
C16: Unit | D16: Reg Team | G16: unit
C17: Number | D17: Reg Team | G17: number
C18: Factor | D18: Reg Team | G18: factor
C19: Elec Energy - Kilowatts/hr | D19: Reg Team | G19: kWh
C20: Elec Energy - Gigawatts/hr | D20: Reg Team | G20: GWh
C21: Elec Energy - Megawatts/hr | D21: Reg Team | G21: MWh
C22: Electricity Energy - Terajoules | D22: Reg Team | G22: TJ
C23: Electricity Energy - Gigajoules | D23: Reg Team | G23: GJ
C24: Mains | D24: Reg Team | G24: mains
C25: Kilometres | D25: Reg Team | G25: kms
C26: Metres | D26: Reg Team | G26: metres
C28: Periodicity
C29: Actuals | D29: Reg Team | G29: Actual
C30: Forecast | D30: Reg Team | G30: Fcast
C31: Date | D31: Reg Team | G31: date
C32: Month | D32: Reg Team | G32: month
C33: Quarter | D33: Reg Team | G33: quarter
C34: Year | D34: Reg Team | G34: year
C35: Option | D35: Reg Team | G35: option
C36: Yes/No | D36: Reg Team | G36: yes/no
C37: Actuals/Forecast | D37: Reg Team | G37: (A)/(F)
C39: Time Intervals
C40: Number of months in a year | D40: Reg Team | G40: 12
C41: Number of days in a year | D41: Reg Team | G41: 365
C42: Number of weeks in a year | D42: Reg Team | G42: 52
C43: Number of periods (years) in reg period | D43: Reg Team | G43: 5
C45: Cash flow timing
C46: Start-year | G46: -0.5
C47: Mid-year | G47: 0
C48: End-year | G48: 0.5
C49: Adjustment to mid-year | G49: 0.5
C50: Adjustment to end-year | G50: 1
C52: Timing
C53: Mid-year | G53: Mid-year
C54: End-year | G54: End-year
C56: Yes/No | G56: [Select]
C57: Yes | G57: Yes
C58: No | G58: No
C60: Dollar base
C61: =+'Calc|Rate of return'!$L$4 -> 2015 | G61: =+C61 -> 2015
C62: =+C61+1 -> 2016 | G62: 2016
C63: =+C62+1 -> 2017 | G63: 2017
C64: 2018 | G64: 2018
C65: 2019 | G65: 2019
C66: 2020 | G66: 2020
C67: 2021 | G67: 2021
C68: 2022 | G68: 2022
C69: 2023 | G69: 2023
C70: 2024 | G70: 2024
C71: 2025 | G71: 2025
C72: 2026 | G72: 2026
C73: 2027 | G73: 2027
C74: 2028 | G74: 2028
C75: 2029 | G75: 2029
C76: 2030 | G76: 2030
C77: 2031 | G77: 2031
C78: Nominal | G78: Nominal
C79: Real | G79: Real
C80: Not Applicable | G80: n/a
C82: Numeric Converters
C83: Thousands | G83: 1000
C84: Millions | G84: 1000000
C86: Rounding and Error Handling
C87: Rounding units | G87: 5
C88: Very Small Number | G88: 1e-07
B90: End

Sheet Check|List
C1: =Index!$C$1 -> EDPR 2027-31 JEN - Rate of Return Model | J1: Back to Index | L1: Key: | M1: Input | N1: Internal links | O1: External links | P1: Drop-down | Q1: Calculation | R1: Unique | S1: Empty
C2: =Index!$C$17 -> Check|List | G2: Overall Check: | H2: =IF(COUNTA($G$10:$G$13)=COUNTIF($G$10:$G$13,"OK"),"OK","Check") -> OK
B5: Copyright Jemena Limited. All rights reserved. Jemena is not liable for any loss caused by reliance on this document.
B7: Check List
C9: Sheet | D9: Source | E9: Unit | F9: Basis | G9: Status
C10: Input|Rate of return | D10: Input|Rate of return | E10: Ok/Check | F10: =+Not_Applicable -> n/a | G10: =+'Input|Rate of return'!H1 -> OK
C11: Input|Indicators | D11: Input|Indicators | E11: Ok/Check | F11: =+Not_Applicable -> n/a
C12: Calc|Rate of return | D12: Calc|Rate of return | E12: Ok/Check | F12: =+Not_Applicable -> n/a | G12: ='Calc|Rate of return'!H1 -> OK
C13: Output|Rate of return | D13: Output|Rate of return | E13: Ok/Check | F13: =+Not_Applicable -> n/a | G13: ='Output|Rate of return'!H1 -> OK
B15: End
